{"text_format":"3","workbook":"xlsx","n_sheets":13,"sheets":["CONFIGURATION","Company Information","Index","Declaration","Broker & Agent Return","Cyber Risk Schedule","AML-ATF Questionnaire ","Corporate Governance","SAR & Sanc. (All)","Attachments","FileStorage","Zones","Data Validation List"],"not_rendered":{"images":1,"macros":1,"defined_names":53},"read":"whole","date_system":"1900"}

{"sheet":"CONFIGURATION","index":0,"n_rows":23,"n_cols":6,"rows_kept":23,"hidden":true}
["ENTITY_ID",{"$f":"'Company Information'!E3","v":0},null,"Company Information","E3","Please enter Registration Number"]
["ENTITY_NAME",{"$f":"'Company Information'!C3","v":"Enter Company Name"},null,"Company Information","C3","Enter Company Name"]
["FILING_TYPE","AMLIMBA",null,"Company Information","E4","Select License Classification"]
["FILING_YEAR",2022]
["CONTACT_PERSON_NAME",{"$f":"'Company Information'!C8 & \" \" & 'Company Information'!E8","v":" "},null,"Company Information","C7","Please enter name"]
["CONTACT_PERSON_EMAIL",{"$f":"'Company Information'!C14","v":0},null,"Company Information","C13","Please enter E-mail address"]
["CONTACT_PERSON_PHONE",{"$f":"'Company Information'!C13","v":0},null,"Company Information","C12","Please enter telephone number"]
["OPTION"]
["COMMENT"]
["CURRENCY_CODE","USD"]
["CLASS","AMLIMBA"]
["DECIMALS",1000,"Thousand Units"]
["FILINGWEBSERVICE","https://amlreturn.bma.bm/filing.ashx"]
["VALIDATIONWEBSERVICE"]
["FILINGCOUNTERWEBSERVICE","https://amlreturn.bma.bm/FilingCounter.ashx"]
["DUMMYWEBSERVICE","https://amlreturn.bma.bm/dummy.ashx"]
["XBRLCONVERSIONWEBSERVICE"]
["PREPOPULATEWEBSERVICE"]
["PREYEARSTARTDATE"]
["PREYEARENDDATE"]
["SAVEDDATAPOPULATEWEBSERVICE"]
["FORMVERSION","2024 YE"]
["FILINGID"]

{"sheet":"Company Information","index":1,"n_rows":16,"n_cols":5,"rows_kept":16}
[null,"COMPANY INFORMATION"]
[]
[null,"Company Name","Enter Company Name","Registration Number"]
[null,"Date Incorporated",null,"Licence Classification","Select License Classification"]
[null,"Date Registered"]
[]
[null,"Contact Details"]
[null,"First Name",null,"Last Name"]
[]
[null,"Principal Office Address"]
[null,"City"]
[null,"Country"]
[null,"Phone Number"]
[null,"Email"]
[]
[null,"Date Prepared"]

{"sheet":"Index","index":2,"n_rows":8,"n_cols":24,"rows_kept":8,"merged":[[4,2,5,7],[4,9,5,14],[4,16,5,21],[4,23,5,28],[7,2,8,7],[7,9,8,14],[7,16,8,21],[7,23,8,28]]}
[null,"INDEX"]
[null,{"$f":"'Company Information'!C3","v":"Enter Company Name"}]
[null,"CLICK BUTTON TO NAVIGATE"]
[]
[null,null,{"$f":"HYPERLINK(\"#'Company Information'!A1\",\"Company Information\")","v":"Company Information"},{"$nulls":6},{"$f":"HYPERLINK(\"#'Declaration'!A1\",\"Declaration Sheet\")","v":"Declaration Sheet"},{"$nulls":6},{"$f":"HYPERLINK(\"#'Broker & Agent Return'!A1\",\"Broker & Agent Return\")","v":"Broker & Agent Return"},{"$nulls":6},{"$f":"HYPERLINK(\"#'Cyber Risk Schedule'!A1\",\"Cyber Risk Schedule\")","v":"Cyber Risk Schedule"}]
[]
[]
[null,null,{"$f":"HYPERLINK(\"#'AML-ATF Questionnaire '!A1\",\"AML-ATF Questionnaire\")","v":"AML-ATF Questionnaire"},{"$nulls":6},{"$f":"HYPERLINK(\"#'Corporate Governance'!A1\",\"Corporate Governance\")","v":"Corporate Governance"},{"$nulls":6},{"$f":"HYPERLINK(\"#'SAR & Sanc. (All)'!A1\",\"SARS & Sanctions\")","v":"SARS & Sanctions"},{"$nulls":6},{"$f":"HYPERLINK(\"#'Attachments'!A1\",\"Attachments\")","v":"Attachments"}]

{"sheet":"Declaration","index":3,"n_rows":18,"n_cols":3,"rows_kept":18,"merged":[[0,1,0,5],[2,1,2,4],[4,2,4,4],[6,2,6,4],[9,2,9,4],[12,2,12,4],[14,2,14,4],[17,2,17,4]]}
[null,"DECLARATION"]
[null,{"$f":"'Company Information'!C3","v":"Enter Company Name"}]
[null,"We declare that to the best of our knowledge and belief, the information in this annual return is fair and accurate."]
[]
[null,"Signatory:"]
[]
[null,"Print Name:"]
[null,null,"Director or Chief Executive"]
[]
[null,"Date"]
[]
[]
[null,"Signatory:"]
[]
[null,"Print Name:"]
[null,null,"Director"]
[]
[null,"Date"]

{"sheet":"Broker & Agent Return","index":4,"n_rows":784,"n_cols":10,"rows_kept":784,"merged":[[0,2,0,5],[161,2,162,6],[191,2,191,6],[216,2,216,6],[220,2,220,6],[224,2,224,7],[505,2,505,7]]}
[null,null,"SCHEDULE I - BROKER & AGENT RETURN"]
[null,null,{"$f":"'Company Information'!C3","v":"Enter Company Name"}]
[null,null,"Section A - All Insurance Brokers and Agents are required to complete the questions below:"]
[]
[null,"(a)","Please add the directors of the insurance broker or agent, including name, type of director, residence, professional qualifications, experience and years appointed by broker or agent."]
[null,null,"Enter number of directors"]
[]
[null,null,"Name","Type of Director","Residence","Professional Qualifications","Experience","Years Appointed by Broker or Agent"]
[null,1,null,"Please Select"]
[null,2,null,"Please Select"]
[null,3,null,"Please Select"]
[null,4,null,"Please Select"]
[null,5,null,"Please Select"]
[null,6,null,"Please Select"]
[null,7,null,"Please Select"]
[null,8,null,"Please Select"]
[null,9,null,"Please Select"]
[null,10,null,"Please Select"]
[null,11,null,"Please Select"]
[null,12,null,"Please Select"]
[null,13,null,"Please Select"]
[null,14,null,"Please Select"]
[null,15,null,"Please Select"]
[null,16,null,"Please Select"]
[null,17,null,"Please Select"]
[null,18,null,"Please Select"]
[null,19,null,"Please Select"]
[null,20,null,"Please Select"]
[]
[null,"(b)(i)","Please add the management and officers of the insurance broker or agent, including name, role, residence, professional qualifications, experience and years employed by broker or agent."]
[null,null,"Enter number of officers"]
[]
[null,null,"Name","Role","Residence","Professional Qualifications","Experience ","Years Employed by Broker or Agent"]
[null,1]
[null,2]
[null,3]
[null,4]
[null,5]
[null,6]
[null,7]
[null,8]
[null,9]
[null,10]
[null,11]
[null,12]
[null,13]
[null,14]
[null,15]
[null,16]
[null,17]
[null,18]
[null,19]
[null,20]
[]
[null,"(b)(ii)","Other staff of the insurance broker or agent, including name, role, residence, professional qualifications, experience, whether employed by an affiliate, name of the affiliate and years employed by broker or agent."]
[null,null,"Enter number of other staff"]
[]
[null,null,"Name","Role","Residence","Professional Qualifications","Experience","Employed by Affiliate","If Affiliate, Name of Affiliate","Years Employed"]
[null,1,{"$nulls":5},"Please Select"]
[null,{"$f":"B59+1","v":2},{"$nulls":5},"Please Select"]
[null,{"$f":"B60+1","v":3},{"$nulls":5},"Please Select"]
[null,4,{"$nulls":5},"Please Select"]
[null,5,{"$nulls":5},"Please Select"]
[null,6,{"$nulls":5},"Please Select"]
[null,7,{"$nulls":5},"Please Select"]
[null,8,{"$nulls":5},"Please Select"]
[null,9,{"$nulls":5},"Please Select"]
[null,10,{"$nulls":5},"Please Select"]
[null,11,{"$nulls":5},"Please Select"]
[null,12,{"$nulls":5},"Please Select"]
[null,13,{"$nulls":5},"Please Select"]
[null,14,{"$nulls":5},"Please Select"]
[null,15,{"$nulls":5},"Please Select"]
[null,16,{"$nulls":5},"Please Select"]
[null,17,{"$nulls":5},"Please Select"]
[null,18,{"$nulls":5},"Please Select"]
[null,19,{"$nulls":5},"Please Select"]
[null,20,{"$nulls":5},"Please Select"]
[null,21,{"$nulls":5},"Please Select"]
[null,22,{"$nulls":5},"Please Select"]
[null,23,{"$nulls":5},"Please Select"]
[null,24,{"$nulls":5},"Please Select"]
[null,25,{"$nulls":5},"Please Select"]
[null,26,{"$nulls":5},"Please Select"]
[null,27,{"$nulls":5},"Please Select"]
[null,28,{"$nulls":5},"Please Select"]
[null,29,{"$nulls":5},"Please Select"]
[null,30,{"$nulls":5},"Please Select"]
[null,31,{"$nulls":5},"Please Select"]
[null,32,{"$nulls":5},"Please Select"]
[null,33,{"$nulls":5},"Please Select"]
[null,34,{"$nulls":5},"Please Select"]
[null,35,{"$nulls":5},"Please Select"]
[null,36,{"$nulls":5},"Please Select"]
[null,37,{"$nulls":5},"Please Select"]
[null,38,{"$nulls":5},"Please Select"]
[null,39,{"$nulls":5},"Please Select"]
[null,40,{"$nulls":5},"Please Select"]
[null,41,{"$nulls":5},"Please Select"]
[null,42,{"$nulls":5},"Please Select"]
[null,43,{"$nulls":5},"Please Select"]
[null,44,{"$nulls":5},"Please Select"]
[null,45,{"$nulls":5},"Please Select"]
[null,46,{"$nulls":5},"Please Select"]
[null,47,{"$nulls":5},"Please Select"]
[null,48,{"$nulls":5},"Please Select"]
[null,49,{"$nulls":5},"Please Select"]
[null,50,{"$nulls":5},"Please Select"]
[null,51,{"$nulls":5},"Please Select"]
[null,52,{"$nulls":5},"Please Select"]
[null,53,{"$nulls":5},"Please Select"]
[null,54,{"$nulls":5},"Please Select"]
[null,55,{"$nulls":5},"Please Select"]
[null,56,{"$nulls":5},"Please Select"]
[null,57,{"$nulls":5},"Please Select"]
[null,58,{"$nulls":5},"Please Select"]
[null,59,{"$nulls":5},"Please Select"]
[null,60,{"$nulls":5},"Please Select"]
[null,61,{"$nulls":5},"Please Select"]
[null,62,{"$nulls":5},"Please Select"]
[null,63,{"$nulls":5},"Please Select"]
[null,64,{"$nulls":5},"Please Select"]
[null,65,{"$nulls":5},"Please Select"]
[null,66,{"$nulls":5},"Please Select"]
[null,{"$f":"B124+1","v":67},{"$nulls":5},"Please Select"]
[null,68,{"$nulls":5},"Please Select"]
[null,69,{"$nulls":5},"Please Select"]
[null,70,{"$nulls":5},"Please Select"]
[null,71,{"$nulls":5},"Please Select"]
[null,72,{"$nulls":5},"Please Select"]
[null,73,{"$nulls":5},"Please Select"]
[null,74,{"$nulls":5},"Please Select"]
[null,75,{"$nulls":5},"Please Select"]
[null,76,{"$nulls":5},"Please Select"]
[null,77,{"$nulls":5},"Please Select"]
[null,78,{"$nulls":5},"Please Select"]
[null,79,{"$nulls":5},"Please Select"]
[null,80,{"$nulls":5},"Please Select"]
[null,81,{"$nulls":5},"Please Select"]
[null,82,{"$nulls":5},"Please Select"]
[null,83,{"$nulls":5},"Please Select"]
[null,84,{"$nulls":5},"Please Select"]
[null,85,{"$nulls":5},"Please Select"]
[null,86,{"$nulls":5},"Please Select"]
[null,87,{"$nulls":5},"Please Select"]
[null,88,{"$nulls":5},"Please Select"]
[null,89,{"$nulls":5},"Please Select"]
[null,90,{"$nulls":5},"Please Select"]
[null,91,{"$nulls":5},"Please Select"]
[null,92,{"$nulls":5},"Please Select"]
[null,93,{"$nulls":5},"Please Select"]
[null,94,{"$nulls":5},"Please Select"]
[null,95,{"$nulls":5},"Please Select"]
[null,96,{"$nulls":5},"Please Select"]
[null,97,{"$nulls":5},"Please Select"]
[null,98,{"$nulls":5},"Please Select"]
[null,99,{"$nulls":5},"Please Select"]
[null,100,{"$nulls":5},"Please Select"]
[]
[null,"(c)","Please add the details of the services provided by the broker or agent "]
[]
[]
[]
[]
[null,null,"Revenue amount per the Management Accounts (as at year-end)"]
[]
[null,"(d)","Please add the details of the services in subparagraph (c) which are outsourced to service providers or affiliates of the broker or agent"]
[null,null,"Enter the number of services outsourced"]
[]
[null,null,"Name of Provider ","Jurisdiction","Confirm if Affiliate","Details of Services Provided"]
[null,1,null,null,"Please Select"]
[null,2,null,null,"Please Select"]
[null,3,null,null,"Please Select"]
[null,4,null,null,"Please Select"]
[null,5,null,null,"Please Select"]
[null,6,null,null,"Please Select"]
[null,7,null,null,"Please Select"]
[null,8,null,null,"Please Select"]
[null,9,null,null,"Please Select"]
[null,10,null,null,"Please Select"]
[null,11,null,null,"Please Select"]
[null,12,null,null,"Please Select"]
[null,13,null,null,"Please Select"]
[null,14,null,null,"Please Select"]
[null,15,null,null,"Please Select"]
[null,16,null,null,"Please Select"]
[null,17,null,null,"Please Select"]
[null,18,null,null,"Please Select"]
[null,19,null,null,"Please Select"]
[null,20,null,null,"Please Select"]
[]
[null,"(e)","Please add the details of policies that have been issued to the broker or agent in respect of professional indemnity insurance, errors and omissions insurance, directors and officers insurance, and errors and omissions insurances"]
[null,null,"Enter number of policies"]
[]
[null,null,"Full Legal Name of Insurers","Financial Strength","Name of Agency","Line of Business/Insurance Class","Excess/Deductible","Policy Limit"]
[null,1,{"$nulls":3},"Please Select"]
[null,2,{"$nulls":3},"Please Select"]
[null,3,{"$nulls":3},"Please Select"]
[null,4,{"$nulls":3},"Please Select"]
[null,5,{"$nulls":3},"Please Select"]
[null,6,{"$nulls":3},"Please Select"]
[null,7,{"$nulls":3},"Please Select"]
[null,8,{"$nulls":3},"Please Select"]
[null,9,{"$nulls":3},"Please Select"]
[null,10,{"$nulls":3},"Please Select"]
[null,11,{"$nulls":3},"Please Select"]
[null,12,{"$nulls":3},"Please Select"]
[null,13,{"$nulls":3},"Please Select"]
[null,14,{"$nulls":3},"Please Select"]
[null,15,{"$nulls":3},"Please Select"]
[null,16,{"$nulls":3},"Please Select"]
[null,17,{"$nulls":3},"Please Select"]
[null,18,{"$nulls":3},"Please Select"]
[null,19,{"$nulls":3},"Please Select"]
[null,20,{"$nulls":3},"Please Select"]
[]
[null,"(f)","Confirmation that the broker or agent has met all of the requirements of the minimum criteria for registration in accordance with the Insurance Act 1978."]
[null,null,"Confirm compliance","(please select)"]
[]
[null,"(g)","Where a broker or agent has not met the minimum criteria for registration, add a description of the non-compliance and any remedial action taken, if any"]
[]
[]
[null,null,"Section B - All Insurance Agents are required to complete the questions below:"]
[]
[null,"(h)","For all insurers for which the agent has been appointed or to whom services are provided, please list the names, registration numbers, insurance class  and whether the entity is an affiliate or non-affiliate."]
[null,null,"Enter the number of insurers"]
[]
[null,null,"Name of Insurer","Registration Number","General Business","Long-Term Business","Entity is Affiliate or Non-Affiliate"]
[null,1,{"$nulls":4},"Please Select"]
[null,2,{"$nulls":4},"Please Select"]
[null,3,{"$nulls":4},"Please Select"]
[null,4,{"$nulls":4},"Please Select"]
[null,5,{"$nulls":4},"Please Select"]
[null,6,{"$nulls":4},"Please Select"]
[null,7,{"$nulls":4},"Please Select"]
[null,8,{"$nulls":4},"Please Select"]
[null,9,{"$nulls":4},"Please Select"]
[null,10,{"$nulls":4},"Please Select"]
[null,11,{"$nulls":4},"Please Select"]
[null,12,{"$nulls":4},"Please Select"]
[null,13,{"$nulls":4},"Please Select"]
[null,14,{"$nulls":4},"Please Select"]
[null,15,{"$nulls":4},"Please Select"]
[null,16,{"$nulls":4},"Please Select"]
[null,17,{"$nulls":4},"Please Select"]
[null,18,{"$nulls":4},"Please Select"]
[null,19,{"$nulls":4},"Please Select"]
[null,20,{"$nulls":4},"Please Select"]
[null,21,{"$nulls":4},"Please Select"]
[null,22,{"$nulls":4},"Please Select"]
[null,23,{"$nulls":4},"Please Select"]
[null,24,{"$nulls":4},"Please Select"]
[null,25,{"$nulls":4},"Please Select"]
[null,26,{"$nulls":4},"Please Select"]
[null,27,{"$nulls":4},"Please Select"]
[null,28,{"$nulls":4},"Please Select"]
[null,29,{"$nulls":4},"Please Select"]
[null,30,{"$nulls":4},"Please Select"]
[null,31,{"$nulls":4},"Please Select"]
[null,32,{"$nulls":4},"Please Select"]
[null,33,{"$nulls":4},"Please Select"]
[null,34,{"$nulls":4},"Please Select"]
[null,35,{"$nulls":4},"Please Select"]
[null,36,{"$nulls":4},"Please Select"]
[null,37,{"$nulls":4},"Please Select"]
[null,38,{"$nulls":4},"Please Select"]
[null,39,{"$nulls":4},"Please Select"]
[null,40,{"$nulls":4},"Please Select"]
[null,41,{"$nulls":4},"Please Select"]
[null,42,{"$nulls":4},"Please Select"]
[null,43,{"$nulls":4},"Please Select"]
[null,44,{"$nulls":4},"Please Select"]
[null,45,{"$nulls":4},"Please Select"]
[null,46,{"$nulls":4},"Please Select"]
[null,47,{"$nulls":4},"Please Select"]
[null,48,{"$nulls":4},"Please Select"]
[null,49,{"$nulls":4},"Please Select"]
[null,50,{"$nulls":4},"Please Select"]
[null,51,{"$nulls":4},"Please Select"]
[null,52,{"$nulls":4},"Please Select"]
[null,53,{"$nulls":4},"Please Select"]
[null,54,{"$nulls":4},"Please Select"]
[null,55,{"$nulls":4},"Please Select"]
[null,56,{"$nulls":4},"Please Select"]
[null,57,{"$nulls":4},"Please Select"]
[null,58,{"$nulls":4},"Please Select"]
[null,59,{"$nulls":4},"Please Select"]
[null,60,{"$nulls":4},"Please Select"]
[null,61,{"$nulls":4},"Please Select"]
[null,62,{"$nulls":4},"Please Select"]
[null,63,{"$nulls":4},"Please Select"]
[null,64,{"$nulls":4},"Please Select"]
[null,65,{"$nulls":4},"Please Select"]
[null,66,{"$nulls":4},"Please Select"]
[null,67,{"$nulls":4},"Please Select"]
[null,68,{"$nulls":4},"Please Select"]
[null,69,{"$nulls":4},"Please Select"]
[null,70,{"$nulls":4},"Please Select"]
[null,71,{"$nulls":4},"Please Select"]
[null,72,{"$nulls":4},"Please Select"]
[null,73,{"$nulls":4},"Please Select"]
[null,74,{"$nulls":4},"Please Select"]
[null,75,{"$nulls":4},"Please Select"]
[null,76,{"$nulls":4},"Please Select"]
[null,77,{"$nulls":4},"Please Select"]
[null,78,{"$nulls":4},"Please Select"]
[null,79,{"$nulls":4},"Please Select"]
[null,80,{"$nulls":4},"Please Select"]
[null,81,{"$nulls":4},"Please Select"]
[null,82,{"$nulls":4},"Please Select"]
[null,83,{"$nulls":4},"Please Select"]
[null,84,{"$nulls":4},"Please Select"]
[null,85,{"$nulls":4},"Please Select"]
[null,86,{"$nulls":4},"Please Select"]
[null,87,{"$nulls":4},"Please Select"]
[null,88,{"$nulls":4},"Please Select"]
[null,89,{"$nulls":4},"Please Select"]
[null,90,{"$nulls":4},"Please Select"]
[null,91,{"$nulls":4},"Please Select"]
[null,92,{"$nulls":4},"Please Select"]
[null,93,{"$nulls":4},"Please Select"]
[null,94,{"$nulls":4},"Please Select"]
[null,95,{"$nulls":4},"Please Select"]
[null,96,{"$nulls":4},"Please Select"]
[null,97,{"$nulls":4},"Please Select"]
[null,98,{"$nulls":4},"Please Select"]
[null,99,{"$nulls":4},"Please Select"]
[null,100,{"$nulls":4},"Please Select"]
[null,101,{"$nulls":4},"Please Select"]
[null,102,{"$nulls":4},"Please Select"]
[null,103,{"$nulls":4},"Please Select"]
[null,104,{"$nulls":4},"Please Select"]
[null,105,{"$nulls":4},"Please Select"]
[null,106,{"$nulls":4},"Please Select"]
[null,107,{"$nulls":4},"Please Select"]
[null,108,{"$nulls":4},"Please Select"]
[null,109,{"$nulls":4},"Please Select"]
[null,110,{"$nulls":4},"Please Select"]
[null,111,{"$nulls":4},"Please Select"]
[null,112,{"$nulls":4},"Please Select"]
[null,113,{"$nulls":4},"Please Select"]
[null,114,{"$nulls":4},"Please Select"]
[null,115,{"$nulls":4},"Please Select"]
[null,116,{"$nulls":4},"Please Select"]
[null,117,{"$nulls":4},"Please Select"]
[null,118,{"$nulls":4},"Please Select"]
[null,119,{"$nulls":4},"Please Select"]
[null,120,{"$nulls":4},"Please Select"]
[null,121,{"$nulls":4},"Please Select"]
[null,122,{"$nulls":4},"Please Select"]
[null,123,{"$nulls":4},"Please Select"]
[null,124,{"$nulls":4},"Please Select"]
[null,125,{"$nulls":4},"Please Select"]
[null,126,{"$nulls":4},"Please Select"]
[null,127,{"$nulls":4},"Please Select"]
[null,128,{"$nulls":4},"Please Select"]
[null,129,{"$nulls":4},"Please Select"]
[null,130,{"$nulls":4},"Please Select"]
[null,131,{"$nulls":4},"Please Select"]
[null,132,{"$nulls":4},"Please Select"]
[null,133,{"$nulls":4},"Please Select"]
[null,134,{"$nulls":4},"Please Select"]
[null,135,{"$nulls":4},"Please Select"]
[null,136,{"$nulls":4},"Please Select"]
[null,137,{"$nulls":4},"Please Select"]
[null,138,{"$nulls":4},"Please Select"]
[null,139,{"$nulls":4},"Please Select"]
[null,140,{"$nulls":4},"Please Select"]
[null,141,{"$nulls":4},"Please Select"]
[null,142,{"$nulls":4},"Please Select"]
[null,143,{"$nulls":4},"Please Select"]
[null,144,{"$nulls":4},"Please Select"]
[null,145,{"$nulls":4},"Please Select"]
[null,146,{"$nulls":4},"Please Select"]
[null,147,{"$nulls":4},"Please Select"]
[null,148,{"$nulls":4},"Please Select"]
[null,149,{"$nulls":4},"Please Select"]
[null,150,{"$nulls":4},"Please Select"]
[null,151,{"$nulls":4},"Please Select"]
[null,152,{"$nulls":4},"Please Select"]
[null,153,{"$nulls":4},"Please Select"]
[null,154,{"$nulls":4},"Please Select"]
[null,155,{"$nulls":4},"Please Select"]
[null,156,{"$nulls":4},"Please Select"]
[null,157,{"$nulls":4},"Please Select"]
[null,158,{"$nulls":4},"Please Select"]
[null,159,{"$nulls":4},"Please Select"]
[null,160,{"$nulls":4},"Please Select"]
[null,161,{"$nulls":4},"Please Select"]
[null,162,{"$nulls":4},"Please Select"]
[null,163,{"$nulls":4},"Please Select"]
[null,164,{"$nulls":4},"Please Select"]
[null,165,{"$nulls":4},"Please Select"]
[null,166,{"$nulls":4},"Please Select"]
[null,167,{"$nulls":4},"Please Select"]
[null,168,{"$nulls":4},"Please Select"]
[null,169,{"$nulls":4},"Please Select"]
[null,170,{"$nulls":4},"Please Select"]
[null,171,{"$nulls":4},"Please Select"]
[null,172,{"$nulls":4},"Please Select"]
[null,173,{"$nulls":4},"Please Select"]
[null,174,{"$nulls":4},"Please Select"]
[null,175,{"$nulls":4},"Please Select"]
[null,176,{"$nulls":4},"Please Select"]
[null,177,{"$nulls":4},"Please Select"]
[null,178,{"$nulls":4},"Please Select"]
[null,179,{"$nulls":4},"Please Select"]
[null,180,{"$nulls":4},"Please Select"]
[null,181,{"$nulls":4},"Please Select"]
[null,182,{"$nulls":4},"Please Select"]
[null,183,{"$nulls":4},"Please Select"]
[null,184,{"$nulls":4},"Please Select"]
[null,185,{"$nulls":4},"Please Select"]
[null,186,{"$nulls":4},"Please Select"]
[null,187,{"$nulls":4},"Please Select"]
[null,188,{"$nulls":4},"Please Select"]
[null,189,{"$nulls":4},"Please Select"]
[null,190,{"$nulls":4},"Please Select"]
[null,191,{"$nulls":4},"Please Select"]
[null,192,{"$nulls":4},"Please Select"]
[null,193,{"$nulls":4},"Please Select"]
[null,194,{"$nulls":4},"Please Select"]
[null,195,{"$nulls":4},"Please Select"]
[null,196,{"$nulls":4},"Please Select"]
[null,197,{"$nulls":4},"Please Select"]
[null,198,{"$nulls":4},"Please Select"]
[null,199,{"$nulls":4},"Please Select"]
[null,200,{"$nulls":4},"Please Select"]
[null,201,{"$nulls":4},"Please Select"]
[null,202,{"$nulls":4},"Please Select"]
[null,203,{"$nulls":4},"Please Select"]
[null,204,{"$nulls":4},"Please Select"]
[null,205,{"$nulls":4},"Please Select"]
[null,206,{"$nulls":4},"Please Select"]
[null,207,{"$nulls":4},"Please Select"]
[null,208,{"$nulls":4},"Please Select"]
[null,209,{"$nulls":4},"Please Select"]
[null,210,{"$nulls":4},"Please Select"]
[null,211,{"$nulls":4},"Please Select"]
[null,212,{"$nulls":4},"Please Select"]
[null,213,{"$nulls":4},"Please Select"]
[null,214,{"$nulls":4},"Please Select"]
[null,215,{"$nulls":4},"Please Select"]
[null,216,{"$nulls":4},"Please Select"]
[null,217,{"$nulls":4},"Please Select"]
[null,218,{"$nulls":4},"Please Select"]
[null,219,{"$nulls":4},"Please Select"]
[null,220,{"$nulls":4},"Please Select"]
[null,221,{"$nulls":4},"Please Select"]
[null,222,{"$nulls":4},"Please Select"]
[null,223,{"$nulls":4},"Please Select"]
[null,224,{"$nulls":4},"Please Select"]
[null,225,{"$nulls":4},"Please Select"]
[null,226,{"$nulls":4},"Please Select"]
[null,227,{"$nulls":4},"Please Select"]
[null,228,{"$nulls":4},"Please Select"]
[null,229,{"$nulls":4},"Please Select"]
[null,230,{"$nulls":4},"Please Select"]
[null,231,{"$nulls":4},"Please Select"]
[null,232,{"$nulls":4},"Please Select"]
[null,233,{"$nulls":4},"Please Select"]
[null,234,{"$nulls":4},"Please Select"]
[null,235,{"$nulls":4},"Please Select"]
[null,236,{"$nulls":4},"Please Select"]
[null,237,{"$nulls":4},"Please Select"]
[null,238,{"$nulls":4},"Please Select"]
[null,239,{"$nulls":4},"Please Select"]
[null,240,{"$nulls":4},"Please Select"]
[null,241,{"$nulls":4},"Please Select"]
[null,242,{"$nulls":4},"Please Select"]
[null,243,{"$nulls":4},"Please Select"]
[null,244,{"$nulls":4},"Please Select"]
[null,245,{"$nulls":4},"Please Select"]
[null,246,{"$nulls":4},"Please Select"]
[null,247,{"$nulls":4},"Please Select"]
[null,248,{"$nulls":4},"Please Select"]
[null,249,{"$nulls":4},"Please Select"]
[null,250,{"$nulls":4},"Please Select"]
[null,251,{"$nulls":4},"Please Select"]
[null,252,{"$nulls":4},"Please Select"]
[null,253,{"$nulls":4},"Please Select"]
[null,254,{"$nulls":4},"Please Select"]
[null,255,{"$nulls":4},"Please Select"]
[null,256,{"$nulls":4},"Please Select"]
[null,257,{"$nulls":4},"Please Select"]
[null,258,{"$nulls":4},"Please Select"]
[null,259,{"$nulls":4},"Please Select"]
[null,260,{"$nulls":4},"Please Select"]
[null,261,{"$nulls":4},"Please Select"]
[null,262,{"$nulls":4},"Please Select"]
[null,263,{"$nulls":4},"Please Select"]
[null,264,{"$nulls":4},"Please Select"]
[null,265,{"$nulls":4},"Please Select"]
[null,266,{"$nulls":4},"Please Select"]
[null,267,{"$nulls":4},"Please Select"]
[null,268,{"$nulls":4},"Please Select"]
[null,269,{"$nulls":4},"Please Select"]
[null,270,{"$nulls":4},"Please Select"]
[null,271,{"$nulls":4},"Please Select"]
[null,272,{"$nulls":4},"Please Select"]
[null,273,{"$nulls":4},"Please Select"]
[null,274,{"$nulls":4},"Please Select"]
[null,275,{"$nulls":4},"Please Select"]
[]
[null,null,"Section C - All (Re)insurance Brokers are required to complete this section."]
[null,"(i)","For all (re)insurers for which the broker arranges or places insurance business with, if applicable. "]
[null,null,"Enter the number of insurers"]
[]
[null,null,"Name of Insurer","Registration Number","General Business","Long-Term Business","Entity is Affiliate or Non-Affiliate"]
[null,1,{"$nulls":4},"Please Select"]
[null,2,{"$nulls":4},"Please Select"]
[null,3,{"$nulls":4},"Please Select"]
[null,4,{"$nulls":4},"Please Select"]
[null,5,{"$nulls":4},"Please Select"]
[null,6,{"$nulls":4},"Please Select"]
[null,7,{"$nulls":4},"Please Select"]
[null,8,{"$nulls":4},"Please Select"]
[null,9,{"$nulls":4},"Please Select"]
[null,10,{"$nulls":4},"Please Select"]
[null,11,{"$nulls":4},"Please Select"]
[null,12,{"$nulls":4},"Please Select"]
[null,13,{"$nulls":4},"Please Select"]
[null,14,{"$nulls":4},"Please Select"]
[null,15,{"$nulls":4},"Please Select"]
[null,16,{"$nulls":4},"Please Select"]
[null,17,{"$nulls":4},"Please Select"]
[null,18,{"$nulls":4},"Please Select"]
[null,19,{"$nulls":4},"Please Select"]
[null,20,{"$nulls":4},"Please Select"]
[null,21,{"$nulls":4},"Please Select"]
[null,22,{"$nulls":4},"Please Select"]
[null,23,{"$nulls":4},"Please Select"]
[null,24,{"$nulls":4},"Please Select"]
[null,25,{"$nulls":4},"Please Select"]
[null,26,{"$nulls":4},"Please Select"]
[null,27,{"$nulls":4},"Please Select"]
[null,28,{"$nulls":4},"Please Select"]
[null,29,{"$nulls":4},"Please Select"]
[null,30,{"$nulls":4},"Please Select"]
[null,31,{"$nulls":4},"Please Select"]
[null,32,{"$nulls":4},"Please Select"]
[null,33,{"$nulls":4},"Please Select"]
[null,34,{"$nulls":4},"Please Select"]
[null,35,{"$nulls":4},"Please Select"]
[null,36,{"$nulls":4},"Please Select"]
[null,37,{"$nulls":4},"Please Select"]
[null,38,{"$nulls":4},"Please Select"]
[null,39,{"$nulls":4},"Please Select"]
[null,40,{"$nulls":4},"Please Select"]
[null,41,{"$nulls":4},"Please Select"]
[null,42,{"$nulls":4},"Please Select"]
[null,43,{"$nulls":4},"Please Select"]
[null,44,{"$nulls":4},"Please Select"]
[null,45,{"$nulls":4},"Please Select"]
[null,46,{"$nulls":4},"Please Select"]
[null,47,{"$nulls":4},"Please Select"]
[null,48,{"$nulls":4},"Please Select"]
[null,49,{"$nulls":4},"Please Select"]
[null,50,{"$nulls":4},"Please Select"]
[null,51,{"$nulls":4},"Please Select"]
[null,52,{"$nulls":4},"Please Select"]
[null,53,{"$nulls":4},"Please Select"]
[null,54,{"$nulls":4},"Please Select"]
[null,55,{"$nulls":4},"Please Select"]
[null,56,{"$nulls":4},"Please Select"]
[null,57,{"$nulls":4},"Please Select"]
[null,58,{"$nulls":4},"Please Select"]
[null,59,{"$nulls":4},"Please Select"]
[null,60,{"$nulls":4},"Please Select"]
[null,61,{"$nulls":4},"Please Select"]
[null,62,{"$nulls":4},"Please Select"]
[null,63,{"$nulls":4},"Please Select"]
[null,64,{"$nulls":4},"Please Select"]
[null,65,{"$nulls":4},"Please Select"]
[null,66,{"$nulls":4},"Please Select"]
[null,67,{"$nulls":4},"Please Select"]
[null,68,{"$nulls":4},"Please Select"]
[null,69,{"$nulls":4},"Please Select"]
[null,70,{"$nulls":4},"Please Select"]
[null,71,{"$nulls":4},"Please Select"]
[null,72,{"$nulls":4},"Please Select"]
[null,73,{"$nulls":4},"Please Select"]
[null,74,{"$nulls":4},"Please Select"]
[null,75,{"$nulls":4},"Please Select"]
[null,76,{"$nulls":4},"Please Select"]
[null,77,{"$nulls":4},"Please Select"]
[null,78,{"$nulls":4},"Please Select"]
[null,79,{"$nulls":4},"Please Select"]
[null,80,{"$nulls":4},"Please Select"]
[null,81,{"$nulls":4},"Please Select"]
[null,82,{"$nulls":4},"Please Select"]
[null,83,{"$nulls":4},"Please Select"]
[null,84,{"$nulls":4},"Please Select"]
[null,85,{"$nulls":4},"Please Select"]
[null,86,{"$nulls":4},"Please Select"]
[null,87,{"$nulls":4},"Please Select"]
[null,88,{"$nulls":4},"Please Select"]
[null,89,{"$nulls":4},"Please Select"]
[null,90,{"$nulls":4},"Please Select"]
[null,91,{"$nulls":4},"Please Select"]
[null,92,{"$nulls":4},"Please Select"]
[null,93,{"$nulls":4},"Please Select"]
[null,94,{"$nulls":4},"Please Select"]
[null,95,{"$nulls":4},"Please Select"]
[null,96,{"$nulls":4},"Please Select"]
[null,97,{"$nulls":4},"Please Select"]
[null,98,{"$nulls":4},"Please Select"]
[null,99,{"$nulls":4},"Please Select"]
[null,100,{"$nulls":4},"Please Select"]
[null,101,{"$nulls":4},"Please Select"]
[null,102,{"$nulls":4},"Please Select"]
[null,103,{"$nulls":4},"Please Select"]
[null,104,{"$nulls":4},"Please Select"]
[null,105,{"$nulls":4},"Please Select"]
[null,106,{"$nulls":4},"Please Select"]
[null,107,{"$nulls":4},"Please Select"]
[null,108,{"$nulls":4},"Please Select"]
[null,109,{"$nulls":4},"Please Select"]
[null,110,{"$nulls":4},"Please Select"]
[null,111,{"$nulls":4},"Please Select"]
[null,112,{"$nulls":4},"Please Select"]
[null,113,{"$nulls":4},"Please Select"]
[null,114,{"$nulls":4},"Please Select"]
[null,115,{"$nulls":4},"Please Select"]
[null,116,{"$nulls":4},"Please Select"]
[null,117,{"$nulls":4},"Please Select"]
[null,118,{"$nulls":4},"Please Select"]
[null,119,{"$nulls":4},"Please Select"]
[null,120,{"$nulls":4},"Please Select"]
[null,121,{"$nulls":4},"Please Select"]
[null,122,{"$nulls":4},"Please Select"]
[null,123,{"$nulls":4},"Please Select"]
[null,124,{"$nulls":4},"Please Select"]
[null,125,{"$nulls":4},"Please Select"]
[null,126,{"$nulls":4},"Please Select"]
[null,127,{"$nulls":4},"Please Select"]
[null,128,{"$nulls":4},"Please Select"]
[null,129,{"$nulls":4},"Please Select"]
[null,130,{"$nulls":4},"Please Select"]
[null,131,{"$nulls":4},"Please Select"]
[null,132,{"$nulls":4},"Please Select"]
[null,133,{"$nulls":4},"Please Select"]
[null,134,{"$nulls":4},"Please Select"]
[null,135,{"$nulls":4},"Please Select"]
[null,136,{"$nulls":4},"Please Select"]
[null,137,{"$nulls":4},"Please Select"]
[null,138,{"$nulls":4},"Please Select"]
[null,139,{"$nulls":4},"Please Select"]
[null,140,{"$nulls":4},"Please Select"]
[null,141,{"$nulls":4},"Please Select"]
[null,142,{"$nulls":4},"Please Select"]
[null,143,{"$nulls":4},"Please Select"]
[null,144,{"$nulls":4},"Please Select"]
[null,145,{"$nulls":4},"Please Select"]
[null,146,{"$nulls":4},"Please Select"]
[null,147,{"$nulls":4},"Please Select"]
[null,148,{"$nulls":4},"Please Select"]
[null,149,{"$nulls":4},"Please Select"]
[null,150,{"$nulls":4},"Please Select"]
[null,151,{"$nulls":4},"Please Select"]
[null,152,{"$nulls":4},"Please Select"]
[null,153,{"$nulls":4},"Please Select"]
[null,154,{"$nulls":4},"Please Select"]
[null,155,{"$nulls":4},"Please Select"]
[null,156,{"$nulls":4},"Please Select"]
[null,157,{"$nulls":4},"Please Select"]
[null,158,{"$nulls":4},"Please Select"]
[null,159,{"$nulls":4},"Please Select"]
[null,160,{"$nulls":4},"Please Select"]
[null,161,{"$nulls":4},"Please Select"]
[null,162,{"$nulls":4},"Please Select"]
[null,163,{"$nulls":4},"Please Select"]
[null,164,{"$nulls":4},"Please Select"]
[null,165,{"$nulls":4},"Please Select"]
[null,166,{"$nulls":4},"Please Select"]
[null,167,{"$nulls":4},"Please Select"]
[null,168,{"$nulls":4},"Please Select"]
[null,169,{"$nulls":4},"Please Select"]
[null,170,{"$nulls":4},"Please Select"]
[null,171,{"$nulls":4},"Please Select"]
[null,172,{"$nulls":4},"Please Select"]
[null,173,{"$nulls":4},"Please Select"]
[null,174,{"$nulls":4},"Please Select"]
[null,175,{"$nulls":4},"Please Select"]
[null,176,{"$nulls":4},"Please Select"]
[null,177,{"$nulls":4},"Please Select"]
[null,178,{"$nulls":4},"Please Select"]
[null,179,{"$nulls":4},"Please Select"]
[null,180,{"$nulls":4},"Please Select"]
[null,181,{"$nulls":4},"Please Select"]
[null,182,{"$nulls":4},"Please Select"]
[null,183,{"$nulls":4},"Please Select"]
[null,184,{"$nulls":4},"Please Select"]
[null,185,{"$nulls":4},"Please Select"]
[null,186,{"$nulls":4},"Please Select"]
[null,187,{"$nulls":4},"Please Select"]
[null,188,{"$nulls":4},"Please Select"]
[null,189,{"$nulls":4},"Please Select"]
[null,190,{"$nulls":4},"Please Select"]
[null,191,{"$nulls":4},"Please Select"]
[null,192,{"$nulls":4},"Please Select"]
[null,193,{"$nulls":4},"Please Select"]
[null,194,{"$nulls":4},"Please Select"]
[null,195,{"$nulls":4},"Please Select"]
[null,196,{"$nulls":4},"Please Select"]
[null,197,{"$nulls":4},"Please Select"]
[null,198,{"$nulls":4},"Please Select"]
[null,199,{"$nulls":4},"Please Select"]
[null,200,{"$nulls":4},"Please Select"]
[null,201,{"$nulls":4},"Please Select"]
[null,202,{"$nulls":4},"Please Select"]
[null,203,{"$nulls":4},"Please Select"]
[null,204,{"$nulls":4},"Please Select"]
[null,205,{"$nulls":4},"Please Select"]
[null,206,{"$nulls":4},"Please Select"]
[null,207,{"$nulls":4},"Please Select"]
[null,208,{"$nulls":4},"Please Select"]
[null,209,{"$nulls":4},"Please Select"]
[null,210,{"$nulls":4},"Please Select"]
[null,211,{"$nulls":4},"Please Select"]
[null,212,{"$nulls":4},"Please Select"]
[null,213,{"$nulls":4},"Please Select"]
[null,214,{"$nulls":4},"Please Select"]
[null,215,{"$nulls":4},"Please Select"]
[null,216,{"$nulls":4},"Please Select"]
[null,217,{"$nulls":4},"Please Select"]
[null,218,{"$nulls":4},"Please Select"]
[null,219,{"$nulls":4},"Please Select"]
[null,220,{"$nulls":4},"Please Select"]
[null,221,{"$nulls":4},"Please Select"]
[null,222,{"$nulls":4},"Please Select"]
[null,223,{"$nulls":4},"Please Select"]
[null,224,{"$nulls":4},"Please Select"]
[null,225,{"$nulls":4},"Please Select"]
[null,226,{"$nulls":4},"Please Select"]
[null,227,{"$nulls":4},"Please Select"]
[null,228,{"$nulls":4},"Please Select"]
[null,229,{"$nulls":4},"Please Select"]
[null,230,{"$nulls":4},"Please Select"]
[null,231,{"$nulls":4},"Please Select"]
[null,232,{"$nulls":4},"Please Select"]
[null,233,{"$nulls":4},"Please Select"]
[null,234,{"$nulls":4},"Please Select"]
[null,235,{"$nulls":4},"Please Select"]
[null,236,{"$nulls":4},"Please Select"]
[null,237,{"$nulls":4},"Please Select"]
[null,238,{"$nulls":4},"Please Select"]
[null,239,{"$nulls":4},"Please Select"]
[null,240,{"$nulls":4},"Please Select"]
[null,241,{"$nulls":4},"Please Select"]
[null,242,{"$nulls":4},"Please Select"]
[null,243,{"$nulls":4},"Please Select"]
[null,244,{"$nulls":4},"Please Select"]
[null,245,{"$nulls":4},"Please Select"]
[null,246,{"$nulls":4},"Please Select"]
[null,247,{"$nulls":4},"Please Select"]
[null,248,{"$nulls":4},"Please Select"]
[null,249,{"$nulls":4},"Please Select"]
[null,250,{"$nulls":4},"Please Select"]
[null,251,{"$nulls":4},"Please Select"]
[null,252,{"$nulls":4},"Please Select"]
[null,253,{"$nulls":4},"Please Select"]
[null,254,{"$nulls":4},"Please Select"]
[null,255,{"$nulls":4},"Please Select"]
[null,256,{"$nulls":4},"Please Select"]
[null,257,{"$nulls":4},"Please Select"]
[null,258,{"$nulls":4},"Please Select"]
[null,259,{"$nulls":4},"Please Select"]
[null,260,{"$nulls":4},"Please Select"]
[null,261,{"$nulls":4},"Please Select"]
[null,262,{"$nulls":4},"Please Select"]
[null,263,{"$nulls":4},"Please Select"]
[null,264,{"$nulls":4},"Please Select"]
[null,265,{"$nulls":4},"Please Select"]
[null,266,{"$nulls":4},"Please Select"]
[null,267,{"$nulls":4},"Please Select"]
[null,268,{"$nulls":4},"Please Select"]
[null,269,{"$nulls":4},"Please Select"]
[null,270,{"$nulls":4},"Please Select"]
[null,271,{"$nulls":4},"Please Select"]
[null,272,{"$nulls":4},"Please Select"]
[null,273,{"$nulls":4},"Please Select"]
[null,274,{"$nulls":4},"Please Select"]
[null,275,{"$nulls":4},"Please Select"]

{"sheet":"Cyber Risk Schedule","index":5,"n_rows":81,"n_cols":11,"rows_kept":81,"merged":[[1,1,1,3],[5,1,9,12],[11,1,12,12],[34,10,34,12],[35,10,35,12],[36,10,36,12],[37,10,37,12],[38,10,38,12],[39,10,39,12],[44,2,44,7],[45,10,45,12],[54,10,54,12],[55,10,55,12],[58,10,58,12],[65,2,65,7],[65,10,65,12],[66,2,66,7],[76,10,76,12],[77,10,77,12]]}
[null,"SCHEDULE II - CYBER RISK MANAGEMENT"]
[null,{"$f":"'Company Information'!C3","v":"Enter Company Name"}]
[]
[null,"Technology Risk Guidance"]
[]
[null,"Technology risk is a key enterprise risk that entities in the financial sectors regulated by the Bermuda Monetary Authority (Authority or BMA) must manage. The questionnaire below is designed to assess technology risk, including information security, data protection and Information Technology (IT) or cybersecurity. The Authority expects that the board of directors of all licensed entities will have evaluated the aforementioned risks. These risks should be managed as part of an overall enterprise risk management process. This assessment is designed to assess technology risk controls. The IT or cyber security controls are grounded in the National Institute of Standards and Technology (NIST) Cybersecurity Framework. The assessment focuses on several areas, to include: governance, policies and procedures, ongoing training, critical/sensitive asset identification, protective measures, detection of anomalous activity, documented incident response plans and effective business recovery processes. "]
[]
[]
[]
[]
[]
[null,"The Authority recognises that there is no “one size fits all” approach to addressing these risks, as specific business circumstances may vary greatly from entity to entity. Each entity must assess their risks, create prudent policies and procedures to mitigate known risks, and ensure that the organisation is properly trained and equipped.\n"]
[]
[]
[null,"Broker or Agent's own cybersecurity and resilience capabilities"]
[null,"Select one response from the drop-down list. Where required/applicable, provide the relevant document indicating the document name and identifying the applicable page numbers. "]
[]
[null,"SECTION A - BUSINESS SUMMARY QUESTIONS",{"$nulls":8},"Complete where prompted"]
[null,"Geographical details",{"$nulls":6},"Responses"]
[null,1,"Is the company headquartered in Bermuda",{"$nulls":5},"Select Yes/No"]
[null,{"$f":"B20+1","v":2},"Number of users located in Bermuda",{"$nulls":5},"Select Amount"]
[null,{"$f":"B21+1","v":3},"Number of users globally ",{"$nulls":5},"Select Amount"]
[null,4,"Do you have a data centre in Bermuda to host your servers",{"$nulls":5},"Select Yes/No"]
[null,5,"Do you utilise a cloud hosting company to host your servers",{"$nulls":5},"Select Yes/No"]
[null,6,"Does the organisation have cybersecurity insurance coverage (i.e., to cover internal risk from security incidents)",{"$nulls":5},"Select Yes/No"]
[null,"Is the following data type stored/processed"]
[null,{"$f":"B25+1","v":7},"Do you collect/store/process personally identifiable information (PII) of your customers? examples include but are not limited to: customer name, email address, social security number",{"$nulls":5},"Select Yes/No"]
[null,{"$f":"B27+1","v":8},"Payment card data (i.e., credit/debit card)",{"$nulls":5},"Select Yes/No"]
[null,{"$f":"B28+1","v":9},"Is customer personal identifiable information collected/stored/processed by this entity on behalf of other entities ",{"$nulls":5},"Select Yes/No"]
[null,"Are the following internet-facing services in place "]
[null,{"$f":"B29+1","v":10},"Brochureware (static content only)",{"$nulls":5},"Select Yes/No"]
[null,{"$f":"B31+1","v":11},"Web applications",{"$nulls":5},"Select Yes/No"]
[null,12,"Web applications that process (e.g., query, reference, capture, store, transmit) personal data or payment card data ",{"$nulls":5},"Select Yes/No"]
[null,"Roles and responsibilities"]
[null,{"$f":"B33+1","v":13},"Is there a dedicated IT risk manager? If not, which job title holds this responsibility",{"$nulls":5},"Select Yes/No",null,"Confirm role holder's name"]
[null,{"$f":"B35+1","v":14},"Is there a dedicated IT security manager? If not, which job title holds this responsibility",{"$nulls":5},"Select Yes/No",null,"Confirm role holder's name"]
[null,{"$f":"B36+1","v":15},"Is there a dedicated IT disaster recovery manager? If not, which job title holds this responsibility",{"$nulls":5},"Select Yes/No",null,"Confirm role holder's name"]
[null,{"$f":"B37+1","v":16},"Is there a dedicated business continuity manager? If not, which job title holds this responsibility",{"$nulls":5},"Select Yes/No",null,"Confirm role holder's name"]
[null,{"$f":"B38+1","v":17},"Does the organisation have a designated data privacy officer",{"$nulls":5},"Select Yes/No",null,"Confirm role holder's name"]
[null,{"$f":"B39+1","v":18},"Is there an annual IT audit plan in place (i.e., detailing any IT audit activity for the year) ",{"$nulls":5},"Select Yes/No",null,"Date of last internal/external IT audit"]
[]
[null,"SECTION B - NIST CONTROL SUMMARY - Answer YES/NO"]
[null,"Identify",{"$nulls":6},"Responses"]
[null,1,"Is there a cyber risk management programme in place (i.e., assessing all IT risk to include IT security risk)",{"$nulls":5},"Select Yes/No"]
[null,{"$f":"B44+1","v":2},"Is the status of the cyber risk management programme communicated to the senior management team and the board of directors regularly",{"$nulls":5},"Select Yes/No"]
[null,3,"Has a cyber risk policy (or cybersecurity policy) been approved by the board of directors and been updated annually",{"$nulls":5},"Select Yes/No",null,"Specify name of relevant document & attach"]
[null,4,"Are the roles and responsibilities of each of the three lines of defence clearly defined",{"$nulls":5},"Select Yes/No"]
[null,5,"Has the organisation performed an assessment of compliance against data protection regulatory requirements ",{"$nulls":5},"Select Yes/No"]
[null,6,"Asset management - are physical devices, information systems and data within the organisation inventoried",{"$nulls":5},"Select Yes/No"]
[null,7,"Has the organisation classified all data ",{"$nulls":5},"Select Yes/No"]
[null,8,"Has a third-party security risk assessment been completed during the past year? i.e., to assess IT risks arising from third parties",{"$nulls":5},"Select Yes/No"]
[null,"Protect"]
[null,9,"Is data that is classified as critical, encrypted in transit and at rest  ",{"$nulls":5},"Select Yes/No"]
[null,{"$f":"B53+1","v":10},"Is there a formal process to ensure maintenance of software and hardware (i.e., patching and managing end-of-life technologies) ",{"$nulls":5},"Select Yes/No"]
[null,11,"Is there a logical access management standard defining how systems access is verified, managed, revoked and audited ",{"$nulls":5},"Select Yes/No",null,"Specify name of relevant document & attach"]
[null,12,"Do all staff complete cybersecurity training annually",{"$nulls":5},"Select Yes/No",null,"Specify name of relevant document & attach"]
[null,13,"Has a penetration test been completed in the last year",{"$nulls":5},"Select Yes/No"]
[null,14,"Has the company segregated the enterprise network into multiple, separate trust zones",{"$nulls":5},"Select Yes/No"]
[null,15,"Is there a process detailing IT service management controls (i.e., change, release and configuration management)",{"$nulls":5},"Select Yes/No",null,"Specify name of relevant document & attach"]
[null,16,"Does the company document and enforce security configuration standards of all network devices",{"$nulls":5},"Select Yes/No"]
[null,"Detect"]
[null,{"$f":"B60+1","v":17},"Is there a process enabling the review of threat intelligence and vulnerability alerting data",{"$nulls":5},"Select Yes/No"]
[null,{"$f":"B62+1","v":18},"Is there a process in place to monitor information systems and assets to identify cybersecurity events ",{"$nulls":5},"Select Yes/No"]
[null,19,"Does the company centrally store and archive security event logs",{"$nulls":5},"Select Yes/No"]
[null,"Respond"]
[null,{"$f":"B64+1","v":20},"Is there a documented security incident response plan in place, including internal and external communications and crisis management ",{"$nulls":5},"Select Yes/No",null,"Specify name of relevant document & attach"]
[null,{"$f":"B66+1","v":21},"In the event of a major incident, is the company contracted to a \"4th line\" IT security expert service (e.g., a managed security services provider)  ",{"$nulls":5},"Select Yes/No"]
[null,"Recover"]
[null,{"$f":"B67+1","v":22},"Has a test of the business continuity and IT disaster recovery plans been performed during the past 12 months ",{"$nulls":5},"Select Yes/No"]
[null,{"$f":"B69+1","v":23},"Has the organisation been subject to a significant cyber incident during the past 12 months",{"$nulls":5},"Select Yes/No"]
[]
[null,"SECTION C - Technical Security Controls - Answer YES/NO"]
[null,"Technical controls summary"]
[null,1,"Antivirus software is installed on all Microsoft operating system endpoints",{"$nulls":5},"Select Yes/No"]
[null,{"$f":"B74+1","v":2},"Is there an endpoint Advanced Persistent Threat (APT) control in place ",{"$nulls":5},"Select Yes/No"]
[null,3,"Are Data Loss Prevention (DLP) controls in place (i.e., to prevent unauthorised data leaving the enterprise)\n\n",{"$nulls":5},"Select Yes/No"]
[null,4,"Is INTERNAL vulnerability scanning conducted (and what is the frequency)",{"$nulls":5},"Select Yes/No",null,"Select Frequency"]
[null,{"$f":"B77+1","v":5},"Is EXTERNAL vulnerability scanning conducted (and what is the frequency)",{"$nulls":5},"Select Yes/No",null,"Select Frequency"]
[null,{"$f":"B78+1","v":6},"Are there regular (six monthly minimum) firewall ruleset reviews",{"$nulls":5},"Select Yes/No"]
[null,7,"Is there a network perimeter Intrusion Detection System/Intrusion Prevention System (IDS/IPS) control",{"$nulls":5},"Select Yes/No"]
[null,8,"Is there Distributed Denial of Service defence in place for internet gateways",{"$nulls":5},"Select Yes/No"]

{"sheet":"AML-ATF Questionnaire ","index":6,"n_rows":403,"n_cols":13,"rows_kept":403,"merged":[[2,2,2,3],[25,0,25,1],[25,3,25,4],[26,0,26,1],[26,3,26,4],[27,0,27,1],[27,3,27,4],[28,0,28,1],[28,3,28,4],[29,0,29,1],[29,3,29,4],[30,0,30,1],[30,3,30,4],[31,0,31,1],[31,3,31,4],[32,0,32,1],[32,3,32,4],[33,0,33,1],[33,3,33,4],[34,0,34,1],[34,3,34,4],[49,2,50,10],[54,2,54,6],[66,2,66,14],[68,4,68,8],[315,2,315,6],[317,2,317,6],[332,8,332,9],[333,8,333,9],[335,8,335,9],[336,8,336,9],[358,2,362,8],[374,2,374,6],[375,2,375,6],[378,2,378,6],[380,2,380,6],[383,2,383,6],[385,2,385,6],[392,8,392,10],[398,2,398,5],[399,2,399,5],[400,2,400,5],[404,2,406,11]]}
[null,"SCHEDULE III - ANTI-MONEY LAUNDERING/ANTI-TERRORIST FINANCING QUESTIONNAIRE"]
[null,null,{"$f":"'Company Information'!C3","v":"Enter Company Name"}]
[]
[]
[null,null,"Does the Broker engage with direct long term insurance service provider? ",{"$nulls":3},"Select Yes/No"]
[null,null,"If No, completing this portion of the Questionnaire is not required."]
[]
[null,null,"Section A - Client/Customer Numbers"]
[]
[null,null,"1. Total number of clients that are direct long-term insurers"]
[]
[null,null,"2. Do you risk rate clients for Money Laundering/Terrorist Financing (ML/TF) risk?",{"$nulls":3},"Select Yes/No"]
[]
[null,null,"3. If yes, please indicate the number of clients in the following risk assessment category—"]
[{"$nulls":6},"Number of Clients"]
[{"$nulls":4},"Low Risk"]
[{"$nulls":4},"Medium Risk"]
[{"$nulls":4},"High Risk"]
[{"$nulls":4},"Unknown"]
[{"$nulls":4},"Total",null,{"$f":"SUM(G16:G19)","v":{"v":0,"d":"0 "}}]
[]
[null,null,"Section B - Products/Services"]
[]
[null,null,"   1. Please list the names of direct long-term insurers",{"$nulls":3},"Long-Term",null,"General Business Class"]
[null,null,"Reg#","Name of Insurer",null,null,"Classes",null,"If Applicable"]
[1,{"$nulls":5},"(please select)",null,"(please select)"]
[2,{"$nulls":5},"(please select)",null,"(please select)"]
[3,{"$nulls":5},"(please select)",null,"(please select)"]
[4,{"$nulls":5},"(please select)",null,"(please select)"]
[5,{"$nulls":5},"(please select)",null,"(please select)"]
[6,{"$nulls":5},"(please select)",null,"(please select)"]
[7,{"$nulls":5},"(please select)",null,"(please select)"]
[8,{"$nulls":5},"(please select)",null,"(please select)"]
[9,{"$nulls":5},"(please select)",null,"(please select)"]
[10,{"$nulls":5},"(please select)",null,"(please select)"]
[]
[null,null,"1.1 In your role as a broker, are you relied on to perform customer due diligence for any external parties?",{"$nulls":5},"Select Yes/No"]
[]
[null,null,"2. Do you handle any client assets?",{"$nulls":5},"Select Yes/No"]
[]
[null,null,"2.1  Please report mechanism(s) used by the company to receive and pay out funds from clients (select from the dropdown menu)"]
[{"$nulls":3},"             Funds are received:",{"$nulls":4},"Funds are paid out:"]
[{"$nulls":3},"        2.1.1  In cash ","(please select)",null,null,"2.1.6 In cash ",null,null,"(please select)"]
[{"$nulls":3},"        2.1.2 By cheque ","(please select)",null,null,"2.1.7 By cheque ",null,null,"(please select)"]
[{"$nulls":3},"        2.1.3 By bank transfer ","(please select)",null,null,"2.1.8. By bank transfer ",null,null,"(please select)"]
[{"$nulls":3},"        2.1.4 By other means ","(please select)",null,null,"2.1.9 By other means ",null,null,"(please select)"]
[{"$nulls":3},"        2.1.5 Digital assets","(please select)",null,null,"2.1.10 Digital assets",null,null,"(please select)"]
[]
[null,null,"If you have answered 'Yes', to 2.1.4 and or 2.1.9 please specify the means utilised "]
[]
[]
[]
[null,null,"Section C - Delivery Channel"]
[]
[null,null,"1. The number of customers onboarded by each of the following methods—"]
[{"$nulls":4},"# of clients onboarded in the last 12 months"]
[{"$nulls":3},"Face to face with clients"]
[{"$nulls":3},"Via intermediary"]
[{"$nulls":3},"By phone, email, fax or post"]
[{"$nulls":3},"Remotely (via video conferencing) "]
[{"$nulls":3},"Other (provide examples)"]
[{"$nulls":3},"Total",{"$f":"SUM(E57:E61)","v":0}]
[]
[null,null,"Section D - Geography (including sub-sections for customer, transactions and politically exposed persons (PEPs))"]
[]
[]
[null,null,"1. Country of residence of Ultimate Beneficial Owners (UBO) of client/customer"]
[null,null,"Zones listed below are in accordance with the BSCR under the Zone Categorisation and BSCR Rating Schedule"]
[{"$nulls":4},"Number of UBOs"]
[{"$nulls":3},"Country of Residence","Number of Clients",null,"Number of PEPs"]
[{"$nulls":3},"of UBOs"]
[{"$nulls":3},"Afghanistan"]
[{"$nulls":3},"Aland Islands"]
[{"$nulls":3},"Albania"]
[{"$nulls":3},"Algeria"]
[{"$nulls":3},"American Samoa"]
[{"$nulls":3},"Andorra"]
[{"$nulls":3},"Angola"]
[{"$nulls":3},"Anguilla"]
[{"$nulls":3},"Antigua and Barbuda"]
[{"$nulls":3},"Argentina"]
[{"$nulls":3},"Armenia"]
[{"$nulls":3},"Aruba"]
[{"$nulls":3},"Australia"]
[{"$nulls":3},"Austria"]
[{"$nulls":3},"Azerbaijan"]
[{"$nulls":3},"Bahamas"]
[{"$nulls":3},"Bahrain"]
[{"$nulls":3},"Bangladesh"]
[{"$nulls":3},"Barbados"]
[{"$nulls":3},"Belarus"]
[{"$nulls":3},"Belgium"]
[{"$nulls":3},"Belize"]
[{"$nulls":3},"Benin"]
[{"$nulls":3},"Bermuda"]
[{"$nulls":3},"Bhutan"]
[{"$nulls":3},"Bolivia (Plurinational State of)"]
[{"$nulls":3},"Bonaire, Sint Eustatius and Saba"]
[{"$nulls":3},"Bosnia and Herzegovina"]
[{"$nulls":3},"Botswana"]
[{"$nulls":3},"Brazil"]
[{"$nulls":3},"British Virgin Islands"]
[{"$nulls":3},"Brunei Darussalam"]
[{"$nulls":3},"Bulgaria"]
[{"$nulls":3},"Burkina Faso"]
[{"$nulls":3},"Burundi"]
[{"$nulls":3},"Cabo Verde (Cape Verde) "]
[{"$nulls":3},"Cambodia"]
[{"$nulls":3},"Cameroon"]
[{"$nulls":3},"Canada"]
[{"$nulls":3},"Cayman Islands"]
[{"$nulls":3},"Central African Republic"]
[{"$nulls":3},"Chad"]
[{"$nulls":3},"Chile"]
[{"$nulls":3},"China"]
[{"$nulls":3},"China, Hong Kong SAR"]
[{"$nulls":3},"China, Macao SAR "]
[{"$nulls":3},"Colombia"]
[{"$nulls":3},"Comoros"]
[{"$nulls":3},"Congo"]
[{"$nulls":3},"Cook Islands"]
[{"$nulls":3},"Costa Rica"]
[{"$nulls":3},"Cote d' Ivoire"]
[{"$nulls":3},"Croatia"]
[{"$nulls":3},"Cuba"]
[{"$nulls":3},"Curacao"]
[{"$nulls":3},"Cyprus"]
[{"$nulls":3},"Czech Republic"]
[{"$nulls":3},"Democratic People's Republic of Korea (North Korea) "]
[{"$nulls":3},"Democratic Republic of the Congo"]
[{"$nulls":3},"Denmark"]
[{"$nulls":3},"Djibouti"]
[{"$nulls":3},"Dominica"]
[{"$nulls":3},"Dominican Republic"]
[{"$nulls":3},"Ecuador"]
[{"$nulls":3},"Egypt"]
[{"$nulls":3},"El Salvador"]
[{"$nulls":3},"Equatorial Guinea"]
[{"$nulls":3},"Eritrea"]
[{"$nulls":3},"Estonia"]
[{"$nulls":3},"Eswatini (Kingdom of Swaziland)"]
[{"$nulls":3},"Ethiopia"]
[{"$nulls":3},"Falkland Islands"]
[{"$nulls":3},"Faroe Islands"]
[{"$nulls":3},"Fiji"]
[{"$nulls":3},"Finland"]
[{"$nulls":3},"France"]
[{"$nulls":3},"French Guiana"]
[{"$nulls":3},"French Polynesia"]
[{"$nulls":3},"Gabon"]
[{"$nulls":3},"Gambia (Republic of The) "]
[{"$nulls":3},"Georgia"]
[{"$nulls":3},"Germany"]
[{"$nulls":3},"Ghana"]
[{"$nulls":3},"Gibraltar"]
[{"$nulls":3},"Greece"]
[{"$nulls":3},"Greenland"]
[{"$nulls":3},"Grenada"]
[{"$nulls":3},"Guadeloupe"]
[{"$nulls":3},"Guam"]
[{"$nulls":3},"Guatemala"]
[{"$nulls":3},"Guernsey"]
[{"$nulls":3},"Guinea"]
[{"$nulls":3},"Guinea-Bissau"]
[{"$nulls":3},"Guyana"]
[{"$nulls":3},"Haiti"]
[{"$nulls":3},"Holy See "]
[{"$nulls":3},"Honduras"]
[{"$nulls":3},"Hungary"]
[{"$nulls":3},"Iceland"]
[{"$nulls":3},"India"]
[{"$nulls":3},"Indonesia"]
[{"$nulls":3},"Iran (Islamic Republic of) "]
[{"$nulls":3},"Iraq"]
[{"$nulls":3},"Ireland "]
[{"$nulls":3},"Isle of Man"]
[{"$nulls":3},"Israel"]
[{"$nulls":3},"Italy"]
[{"$nulls":3},"Jamaica "]
[{"$nulls":3},"Japan"]
[{"$nulls":3},"Jersey"]
[{"$nulls":3},"Jordan"]
[{"$nulls":3},"Kazakhstan"]
[{"$nulls":3},"Kenya"]
[{"$nulls":3},"Kiribati"]
[{"$nulls":3},"Kuwait"]
[{"$nulls":3},"Kyrgyzstan"]
[{"$nulls":3},"Lao People's Democratic Republic"]
[{"$nulls":3},"Latvia"]
[{"$nulls":3},"Lebanon"]
[{"$nulls":3},"Lesotho"]
[{"$nulls":3},"Liberia"]
[{"$nulls":3},"Libya"]
[{"$nulls":3},"Liechtenstein"]
[{"$nulls":3},"Lithuania"]
[{"$nulls":3},"Luxembourg"]
[{"$nulls":3},"Madagascar"]
[{"$nulls":3},"Malawi"]
[{"$nulls":3},"Malaysia"]
[{"$nulls":3},"Maldives"]
[{"$nulls":3},"Mali"]
[{"$nulls":3},"Malta"]
[{"$nulls":3},"Marshall Islands"]
[{"$nulls":3},"Martinique"]
[{"$nulls":3},"Mauritania"]
[{"$nulls":3},"Mauritius"]
[{"$nulls":3},"Mayotte"]
[{"$nulls":3},"Mexico"]
[{"$nulls":3},"Micronesia (Federated States of) "]
[{"$nulls":3},"Monaco"]
[{"$nulls":3},"Mongolia"]
[{"$nulls":3},"Montenegro"]
[{"$nulls":3},"Montserrat"]
[{"$nulls":3},"Morocco"]
[{"$nulls":3},"Mozambique"]
[{"$nulls":3},"Myanmar"]
[{"$nulls":3},"Namibia"]
[{"$nulls":3},"Nauru"]
[{"$nulls":3},"Nepal"]
[{"$nulls":3},"Netherlands"]
[{"$nulls":3},"New Caledonia"]
[{"$nulls":3},"New Zealand"]
[{"$nulls":3},"Nicaragua"]
[{"$nulls":3},"Niger"]
[{"$nulls":3},"Nigeria"]
[{"$nulls":3},"Niue"]
[{"$nulls":3},"Norfolk Island"]
[{"$nulls":3},"North Macedonia "]
[{"$nulls":3},"Northern Mariana Islands"]
[{"$nulls":3},"Norway"]
[{"$nulls":3},"Oman"]
[{"$nulls":3},"Pakistan"]
[{"$nulls":3},"Palau"]
[{"$nulls":3},"Panama"]
[{"$nulls":3},"Papua New Guinea"]
[{"$nulls":3},"Paraguay"]
[{"$nulls":3},"Peru"]
[{"$nulls":3},"Philippines"]
[{"$nulls":3},"Pitcairn"]
[{"$nulls":3},"Poland"]
[{"$nulls":3},"Portugal"]
[{"$nulls":3},"Puerto Rico "]
[{"$nulls":3},"Qatar"]
[{"$nulls":3},"Republic of Korea (South Korea) "]
[{"$nulls":3},"Republic of Moldova"]
[{"$nulls":3},"Reunion"]
[{"$nulls":3},"Romania"]
[{"$nulls":3},"Russian Federation"]
[{"$nulls":3},"Rwanda"]
[{"$nulls":3},"Saint Barthelemy (St. Barts) "]
[{"$nulls":3},"Saint Helena"]
[{"$nulls":3},"Saint Kitts and Nevis "]
[{"$nulls":3},"Saint Lucia "]
[{"$nulls":3},"Saint Martin "]
[{"$nulls":3},"Saint Pierre and Miquelon"]
[{"$nulls":3},"Saint Vincent and The Grenadines "]
[{"$nulls":3},"Samoa"]
[{"$nulls":3},"San Marino"]
[{"$nulls":3},"Sao Tome and Principe"]
[{"$nulls":3},"Sark"]
[{"$nulls":3},"Saudi Arabia"]
[{"$nulls":3},"Senegal"]
[{"$nulls":3},"Serbia"]
[{"$nulls":3},"Seychelles"]
[{"$nulls":3},"Sierra Leone"]
[{"$nulls":3},"Singapore"]
[{"$nulls":3},"Sint Maarten"]
[{"$nulls":3},"Slovakia"]
[{"$nulls":3},"Slovenia"]
[{"$nulls":3},"Solomon Islands"]
[{"$nulls":3},"Somalia"]
[{"$nulls":3},"South Africa"]
[{"$nulls":3},"South Sudan"]
[{"$nulls":3},"Spain"]
[{"$nulls":3},"Sri Lanka"]
[{"$nulls":3},"State of Palestine "]
[{"$nulls":3},"Sudan"]
[{"$nulls":3},"Suriname"]
[{"$nulls":3},"Svalbard, Jan Mayen"]
[{"$nulls":3},"Sweden"]
[{"$nulls":3},"Switzerland"]
[{"$nulls":3},"Syrian Arab Republic "]
[{"$nulls":3},"Taiwan"]
[{"$nulls":3},"Tajikistan"]
[{"$nulls":3},"Thailand"]
[{"$nulls":3},"Timor-Leste"]
[{"$nulls":3},"Togo"]
[{"$nulls":3},"Tokelau"]
[{"$nulls":3},"Tonga"]
[{"$nulls":3},"Trinidad and Tobago"]
[{"$nulls":3},"Tunisia"]
[{"$nulls":3},"Turkey"]
[{"$nulls":3},"Turkmenistan"]
[{"$nulls":3},"Turks and Caicos Islands"]
[{"$nulls":3},"Tuvalu"]
[{"$nulls":3},"Uganda"]
[{"$nulls":3},"Ukraine"]
[{"$nulls":3},"United Arab Emirates"]
[{"$nulls":3},"United Kingdom of Great Britan and Northern Ireland "]
[{"$nulls":3},"United Republic of Tanzania"]
[{"$nulls":3},"United States of America"]
[{"$nulls":3},"Uruguay"]
[{"$nulls":3},"US Virgin Islands"]
[{"$nulls":3},"Uzbekistan"]
[{"$nulls":3},"Vanuatu"]
[{"$nulls":3},"Venezuela, Bolivarian Republic of "]
[{"$nulls":3},"Vietnam "]
[{"$nulls":3},"Wallis & Futuna Islands"]
[{"$nulls":3},"Western Sahara"]
[{"$nulls":3},"Yemen"]
[{"$nulls":3},"Zambia"]
[{"$nulls":3},"Zimbabwe"]
[{"$nulls":3},"Total",{"$f":"SUM(E72:E312)","v":0},null,{"$f":"SUM(G72:G312)","v":0}]
[]
[]
[null,null,"2. Do you identify PEPs?",{"$nulls":5},"Select Yes/No"]
[]
[null,null,"3. Please confirm if the company performs transaction monitoring",{"$nulls":5},"Select Yes/No"]
[]
[null,null,"Section F - Training/Personnel"]
[]
[null,null,"1. Please confirm if the company provides employees with training in relating to money laundering (“ML”) and terrorism financing (“TF”). ",{"$nulls":9},"Select Yes/No"]
[null,null,"If yes, confirm if:"]
[null,null,"(a) ML/TF training is included in the induction programme of new employees",{"$nulls":9},"Select Yes/No"]
[null,null,"(b) The ML/TF training provided is specific to the business of the broker",{"$nulls":9},"Select Yes/No"]
[null,null,"(c) If no, is the ML/TF training of general application?",{"$nulls":9},"Select Yes/No"]
[null,null,"(d) The frequency that employees must undertake ML/TF training",{"$nulls":9},"Select Years"]
[]
[null,null,"2. How many persons are employed by the company?"]
[{"$nulls":3},"Full time"]
[{"$nulls":3},"Part time"]
[]
[null,null,"2.1. Please confirm the name and work arrangement of your compliance officer ",{"$nulls":4},"Name: ",{"$nulls":4},"(please select)"]
[null,null,"    2.1.1. Please give the compliance officer's contact email address",{"$nulls":4},"email:"]
[]
[null,null,"2.2. Please confirm the and name work arrangement of your reporting officer",{"$nulls":4},"Name: ",{"$nulls":4},"(please select)"]
[null,null,"    2.2.1. Please give the reporting officer's contact email address",{"$nulls":4},"email:"]
[]
[null,null,"3.  Please indicate what actions are undertaken when recruiting staff"]
[{"$nulls":3},"Verify name",{"$nulls":4},"(please select)"]
[{"$nulls":3},"Verify residential address",{"$nulls":4},"(please select)"]
[{"$nulls":3},"Check if the individual should be considered as PEP",{"$nulls":4},"(please select)"]
[{"$nulls":3},"Check individual against sanctions lists",{"$nulls":4},"(please select)"]
[{"$nulls":3},"Check for any negative press against the individual",{"$nulls":4},"(please select)"]
[{"$nulls":3},"Confirm employment history",{"$nulls":4},"(please select)"]
[{"$nulls":3},"Confirm references",{"$nulls":4},"(please select)"]
[{"$nulls":3},"Request details on any regulatory action taken against the individual",{"$nulls":4},"(please select)"]
[{"$nulls":3},"Request details of any criminal convictions",{"$nulls":4},"(please select)"]
[]
[null,null,"4. Is the company's compliance officer a member of the senior management of the company?",{"$nulls":7},"Select Yes/No"]
[]
[null,null,"Section G - AML/ATF Controls"]
[]
[null,null,"1. Does the company have AML/ATF controls that are specific for its business",{"$nulls":5},"(please select)"]
[null,null,"2. Does the company have AML/ATF controls that are specific for all other serviced entities?",{"$nulls":5},"(please select)"]
[null,null,"3. Does the company have other specific AML/ATF controls?",{"$nulls":5},"(please select)"]
[]
[null,null,"If you have answered 'Yes' to 3, please briefly describe the AML/ATF controls"]
[]
[]
[]
[]
[]
[]
[null,null,"4. Please confirm the frequency with which it rates its AML/ATF risks.",{"$nulls":5},"Select Years"]
[]
[null,null,"5. Is senior management approval required to approve new business, if the client has been risk rated as— "]
[{"$nulls":4},"Low",null,"Medium",null,"High"]
[{"$nulls":4},"Select Yes/No",null,"Select Yes/No",null,"Select Yes/No"]
[]
[null,null,"6. Is senior management approval required to retain an existing client, if the client’s risk rating has changed to—"]
[{"$nulls":4},"Low",null,"Medium",null,"High"]
[{"$nulls":4},"Select Yes/No",null,"Select Yes/No",null,"Select Yes/No"]
[]
[null,null,"7. Please confirm if the policies and procedure manuals of the company relating to AML/ATF are in line with all applicable laws and regulations",{"$nulls":5},"Select Yes/No"]
[null,null,"7.1 Please confirm the frequency for which the company's  AML/ATF policies and procedures are reviewed",{"$nulls":5},"Select Years"]
[null,null,"(please attach a copy of the AML/ATF policies and procedure if they have been updated in the last 12 months to the Attachments tab)"]
[]
[null,null,"8. The date the company last performed an entity-wide AML/ATF risk assessment"]
[]
[null,null,"9. The date the company last conducted an independent audit of its AML/ATF program"]
[null,null,"    (please attach a copy of the latest independent audit to the Attachments tab)"]
[]
[null,null,"10. The date of the last compliance/reporting officer report on the operation and effectiveness of the company AML/ATF policies, procedures and controls"]
[null,null," "]
[null,null,"11. Does the company document the ML/TF risks associated with a product/service prior to launch?",{"$nulls":5},"Select Yes/No"]
[]
[null,null,"Section H - Company Data"]
[]
[null,null,"1. Company Data"]
[null,null,"1.1. Is the company a part of group?",{"$nulls":5},"(please select)"]
[{"$nulls":8},"Entity Name",{"$nulls":3},"RoC #"]
[null,null,"       1.1.1. If yes, please provide name of the group and Registrar of Companies number (where relevant)."]
[]
[null,null,"1.2 Is the company listed on a stock exchange?",{"$nulls":5},"(please select)"]
[]
[null,null,"If yes, please list the name of the exchange:"]
[]
[]
[]
[]
[]
[null,null,"Please include any additional information/comments which you think might be relevant to this exercise"]

{"sheet":"Corporate Governance","index":7,"n_rows":88,"n_cols":13,"rows_kept":88,"merged":[[2,2,2,3],[8,2,8,12],[9,2,9,11],[10,3,10,11],[11,3,11,11],[12,3,12,11],[13,3,13,11],[14,3,14,11],[15,3,15,11],[16,3,16,11],[17,3,17,11],[18,3,18,11],[19,3,19,11],[20,3,20,11],[21,3,21,11],[22,3,22,11],[24,2,24,12],[26,3,26,11],[27,3,27,11],[28,3,28,11],[29,3,29,11],[30,3,30,11],[32,2,32,12],[34,3,34,11],[35,3,35,11],[36,3,36,11],[37,3,37,11],[38,3,38,11],[39,3,39,11],[40,3,40,11],[41,3,41,11],[42,3,42,11],[44,2,44,12],[46,3,46,11],[47,3,47,11],[48,3,48,11],[49,3,49,11],[55,2,55,12],[56,2,56,11],[57,3,57,11],[58,3,58,11],[59,3,59,11],[60,3,60,11],[61,3,61,11],[63,2,63,12],[65,3,65,11],[66,3,66,11],[67,3,67,11],[68,3,68,11],[69,3,69,11],[71,2,71,12],[73,3,73,11],[74,3,74,11],[75,3,75,11],[76,3,76,11],[77,3,77,11],[78,3,78,11],[79,3,79,11],[80,3,80,11],[81,3,81,11],[83,2,83,12],[85,3,85,11],[86,3,86,11],[87,3,87,11]]}
[null,"SCHEDULE III - CORPORATE GOVERNANCE"]
[null,null,{"$f":"'Company Information'!C3","v":"Enter Company Name"}]
[null,null,{"$f":"'AML-ATF Questionnaire '!C3","v":"00:00:00"}]
[]
[null,null,"Section I - Corporate Governance"]
[]
[null,null,"If the broker/agent is a company please complete this section. Otherwise, proceed to Section J. (If a question is not applicable, then select \"No\")"]
[]
[null,null,"Corporate Governance"]
[null,null,"The broker/agent shall confirm the following information (to the best of its knowledge and belief) as at the reporting period:",{"$nulls":9},"Please select from the dropdown menu:"]
[null,null,1,"Whether the powers, roles, responsibilities and accountabilities between the board of the broker/agent  and senior management are clearly defined, segregated and understood.",{"$nulls":8},"(please select)"]
[null,null,2,"That the broker/agent reviews and monitors the structure, size and composition of the board and recommends improvements to ensure its compliance with the applicable laws, regulations, listing rules and broker/agent’s policies. ",{"$nulls":8},"(please select)"]
[null,null,3,"That the Audit and Risk Management Committee of the board or any related board committee, assists the board in fulfilling its oversight function through the review and evaluation of the (a) financial reporting process and (b) adequacy and effectiveness of the system of internal controls; including financial reporting and IT security controls. ",{"$nulls":8},"(please select)"]
[null,null,4,"Confirmation that the board receives sufficient AML/ATF information to assess and understand the senior executive’s process for evaluating the broker/agent's system of internal controls.",{"$nulls":8},"(please select)"]
[null,null,5,"Whether the board ensures that the broker/agent complies with all relevant laws and regulations and endeavours to adopt best business practices.",{"$nulls":8},"(please select)"]
[null,null,6,"That the board and senior management declare any personal dealings to Human Resources and the Compliance department when applicable or required.",{"$nulls":8},"(please select)"]
[null,null,7,"That the board provides oversight to the broker/agent with regard to enterprise risk management and (a) identifies key risk areas and key performance indicators and (b) monitors these factors with due diligence.",{"$nulls":8},"(please select)"]
[null,null,8,"Whether board members ensure there is appropriate oversight by the senior management that is consistent with the broker/agent's policies and procedures.",{"$nulls":8},"(please select)"]
[null,null,9,"Whether the board sets and enforces clear lines of responsibility and accountability throughout the organisation.",{"$nulls":8},"(please select)"]
[null,null,10,"That at least annually the board monitors the senior management’s compliance with policies set by the board and its performance based on approved targets and objectives.",{"$nulls":8},"(please select)"]
[null,null,11,"That the board receives advice on all major financing transactions, principal agreements and capitalisation requiring board approval and makes appropriate recommendations for their consideration.",{"$nulls":8},"(please select)"]
[null,null,12,"Whether the compliance and audit function are independent of all operational and business functions as far as practicable and have direct lines of communication to the senior management.",{"$nulls":8},"(please select)"]
[null,null,13,"That the broker/agent has instituted policies or procedures to provide for the senior compliance officer to have regular contact with and direct access to the senior management.",{"$nulls":8},"(please select)"]
[]
[null,null,"Employee  Integrity"]
[]
[null,null,14,"Whether the broker/agent has established, and maintains and operates, appropriate procedures in order to be satisfied of the integrity of new employees.",{"$nulls":8},"(please select)"]
[null,null,15,"That appropriate mechanisms have been established to ensure the protection of relevant employees of the broker/agent to report suspicious transactions and other actions to comply with AML/ATF obligations.",{"$nulls":8},"(please select)"]
[null,null,16,"That adequate procedures or management information systems are in place to provide relevant employees with timely information which may include information regarding connected accounts or relationships.",{"$nulls":8},"(please select)"]
[null,null,17,"Whether adequate procedures or document information systems are in place to ensure relevant legal obligations are understood and practiced by relevant employees and adequate guidance and training is provided by the broker/agent to employees.",{"$nulls":8},"(please select)"]
[null,null,18,"Whether incidences of financial crime committed by relevant employees (e.g., theft, fraud) is low.",{"$nulls":8},"(please select)"]
[]
[null,null,"Employee  Knowledge"]
[]
[null,null,19,"That all relevant employees are aware of the identity of the reporting officer and how to report suspicious activity.",{"$nulls":8},"(please select)"]
[null,null,20,"Whether training programmes include the AML/ATF risks of the broker/agent.",{"$nulls":8},"(please select)"]
[null,null,21,"Whether the broker/agent has an appropriate number of suitably trained employees and other resources necessary to implement and operate its AML/ATF programme.",{"$nulls":8},"(please select)"]
[null,null,22,"Whether relevant employees fully comply with all AML/ATF procedures in respect of customer identification, account monitoring, record keeping and reporting.",{"$nulls":8},"(please select)"]
[null,null,23,"That relevant employees are expected to remain vigilant to the possibility of ML/TF.",{"$nulls":8},"(please select)"]
[null,null,24,"Whether relevant employees who violate any of the AML/ATF regulations and/or policies and procedures outlined in the broker/agent’s handbook will be subject to disciplinary action.",{"$nulls":8},"(please select)"]
[null,null,25,"That all relevant employees are required to (at least annually) undertake training to ensure that their knowledge of AML/ATF laws, policies and procedure is current.",{"$nulls":8},"(please select)"]
[null,null,26,"Whether relevant employees are updated on ML/TF schemes and typologies on a regular basis.",{"$nulls":8},"(please select)"]
[null,null,27,"That employees are required to declare personal dealings relevant in the jurisdictions that the broker/agent operates in on a regular basis (at least annually).",{"$nulls":8},"(please select)"]
[]
[null,null,"Employee  Compliance"]
[]
[null,null,28,"Whether the broker/agent ensures that the senior compliance officer is the focal point for the oversight of all activities relating to the prevention and detection of ML/TF.",{"$nulls":8},"(please select)"]
[null,null,29,"That the senior compliance officer is fully conversant and trained in up-to-date regulatory requirements and ML/TF risks arising from the broker/agent’s business.",{"$nulls":8},"(please select)"]
[null,null,30,"That the board monitors compliance with corporate governance regulations and guidelines.",{"$nulls":8},"(please select)"]
[null,null,31,"Whether the board supports the senior management’s scope of AML/ATF internal control assessment and receives regular (at least annually) reports from the senior management.",{"$nulls":8},"(please select)"]
[]
[null,null,"Section J - Corporate Governance"]
[]
[null,null,"This section is to be completed by broker/agenta who are partnerships, sole proprietorships or individuals. (If a question is not applicable, then select \"No\")"]
[]
[null,null,"Corporate Governance"]
[null,null,"The broker/agent shall confirm the following information (to the best of its knowledge and belief) as at the reporting period:",{"$nulls":9},"Please select from the dropdown menu:"]
[null,null,1,"The broker/agent reviews and monitors its structure, size and composition and recommends improvements to ensure its compliance to the applicable laws, regulations and policies. ",{"$nulls":8},"(please select)"]
[null,null,2,"The  broker/agent has an effective oversight function through the review and evaluation of the financial reporting process and adequacy and effectiveness of the system of internal controls, including financial reporting control and IT security. ",{"$nulls":8},"(please select)"]
[null,null,3,"The broker/agent complies with all relevant laws and regulations and endeavours to adopt best business practices.",{"$nulls":8},"(please select)"]
[null,null,4,"A qualified party provides oversight with regard to enterprise risk management and identifies key risk areas and key performance indicators and monitor these factors with due diligence.",{"$nulls":8},"(please select)"]
[null,null,5,"The compliance and audit function are independent of all operational and business functions as far as practicable.",{"$nulls":8},"(please select)"]
[]
[null,null,"Employee  Integrity"]
[]
[null,null,6,"The broker/agent establishes, maintains and operates appropriate procedures in order to be satisfied of the integrity of any new employees.",{"$nulls":8},"(please select)"]
[null,null,7,"There are appropriate mechanisms that ensure the protection of the broker/agent’s staff for reporting suspicious transactions and other actions to comply with AML/ATF obligations.",{"$nulls":8},"(please select)"]
[null,null,8,"There are adequate procedures or management information systems in place to provide relevant staff with timely information that might include any information on any connected accounts or relationships.",{"$nulls":8},"(please select)"]
[null,null,9,"There are adequate procedures or management information systems in place to ensure relevant legal obligations are well understood by staff and adequate guidance and training is provided.",{"$nulls":8},"(please select)"]
[null,null,10,"The incidence of integrity failure (e.g., theft, fraud) involving the broker/agent’s staff is low.",{"$nulls":8},"(please select)"]
[]
[null,null,"Employee  Knowledge (to be completed where the broker/agent has employees)"]
[]
[null,null,11,"All staff know the identity of the AML/ATF compliance officer and reporting officer and how to report suspicious activities.",{"$nulls":8},"(please select)"]
[null,null,12,"Training programmes are designed to cover the AML/ATF risks of the broker/agent in order to ensure that all appropriate staff members are trained.",{"$nulls":8},"(please select)"]
[null,null,13,"The broker/agent has an appropriate number of suitably trained staff and other resources necessary to implement and operate its AML/ATF programme.",{"$nulls":8},"(please select)"]
[null,null,14,"Staff comply fully with all AML procedures in respect of customer identification, account monitoring, record keeping and reporting.",{"$nulls":8},"(please select)"]
[null,null,15,"Staff remain vigilant to the possibility of ML/TF.",{"$nulls":8},"(please select)"]
[null,null,16,"Staff who violate any of the AML/ATF regulations or the policies and procedures outlined in the handbook will be subject to disciplinary action.",{"$nulls":8},"(please select)"]
[null,null,17,"All staff members are required to undergo refresher training to ensure that their knowledge of AML/ATF laws, policies and procedures is current (at least annually).",{"$nulls":8},"(please select)"]
[null,null,18,"Staff are updated on ML/TF schemes and typologies on a regular basis.",{"$nulls":8},"(please select)"]
[null,null,19,"Staff are required to declare their personal dealings on a regular basis (at least annually).",{"$nulls":8},"(please select)"]
[]
[null,null,"Employee  Compliance"]
[]
[null,null,20,"The broker/agent ensures that the compliance officer is the focal point for the oversight of all activities relating to the prevention and detection of ML/TF.",{"$nulls":8},"(please select)"]
[null,null,21,"The compliance officer is fully conversant in regulatory requirements and AML/ATF risks arising from the business.",{"$nulls":8},"(please select)"]
[null,null,22,"The broker/agent monitors compliance with corporate governance regulations and guidelines.",{"$nulls":8},"(please select)"]

{"sheet":"SAR & Sanc. (All)","index":8,"n_rows":51,"n_cols":15,"rows_kept":51,"merged":[[7,2,7,6],[9,2,9,7],[13,2,13,7],[16,2,16,7],[29,1,31,10],[34,1,34,12],[36,1,36,12],[38,1,38,12],[40,1,40,9],[42,1,42,9],[44,2,44,5],[44,6,44,9],[45,2,45,5],[45,6,45,9],[46,2,46,5],[46,6,46,9],[47,2,47,5],[47,6,47,9],[48,2,48,5],[48,6,48,9],[52,1,54,10]]}
[null,"SCHEDULE IV - SUSPICIOUS ACTIVITY REPORTING AND SANCTIONS QUESTIONNAIRE"]
[null,{"$f":"'Company Information'!C3","v":"Enter Company Name"}]
[{"$nulls":14},"SAR & Sanctions "]
[]
[null,"All Brokers/Agents shall be required to complete the questions set out in the Suspicious Activity Reporting (SAR) and Sanctions Schedule (on a unconsolidated basis). "]
[null,null,"Section E - Reporting"]
[]
[null,null,"1. Is your company registered with GoAML at www.fia.bm",{"$nulls":7},"Select Yes/No"]
[null,null,"1.1 If yes, under what name and when?"]
[]
[]
[null,null,"1.2 If you answered no to 1., do you have access to GoAML through another registration?",{"$nulls":7},"Select Yes/No"]
[null,null,"1.3 Under what name and how are you connected?"]
[{"$nulls":8},"`"]
[]
[null,null,"1.4 if you answered no to 1. and 1.2, who would file an SAR on your behalf?"]
[]
[]
[null,null,"2. How many SARs have been filed? "]
[]
[{"$nulls":8},"Internal",null,"With FIA"]
[{"$nulls":7},{"$f":"YEAR('AML-ATF Questionnaire '!C3)","v":1900},null,{"$f":"YEAR('AML-ATF Questionnaire '!C3)","v":1900}]
[{"$nulls":7},2020,null,2020]
[{"$nulls":7},2019,null,2019]
[{"$nulls":7},2018,null,2018]
[{"$nulls":7},"Total",{"$f":"SUM(I22:I25)","v":0},"Total",{"$f":"SUM(K22:K25)","v":0}]
[]
[]
[null,"Please include any additional information/comments which you think might be relevant to this exercise?"]
[]
[]
[]
[]
[]
[null,"1. Does the company screen insurers and beneficiaries (where relevant) to determine if they are subject to measures imposed under the Bermuda sanctions regime?",{"$nulls":12},"Select Yes/No"]
[]
[null,"2. Does the company screen employees to determine if they are subject to measures imposed under the Bermuda sanctions regime?",{"$nulls":12},"Select Yes/No"]
[]
[null,"3. Has the company frozen any assets in the last 12 months under the Bermuda sanctions regime?",{"$nulls":12},"Select Yes/No"]
[]
[null,"3.1 If yes, how many?"]
[]
[null,"3.2 Please provide the following details for those asset freezes from the consolidated list:"]
[]
[null,"Group ID","Name of the designated person as given on the consolidated list",{"$nulls":3},"Name of the person/entity if owned/controlled by a designated person.",{"$nulls":3},"Value of assets"]
[1]
[2]
[3]
[4]
[]
[null,"Please include any additional information/comments which you think might be relevant to this exercise?"]

{"sheet":"Attachments","index":9,"n_rows":13,"n_cols":12,"rows_kept":13,"merged":[[3,1,3,4],[3,5,3,8],[4,1,4,4],[4,5,4,8],[5,1,5,4],[5,5,5,8],[6,1,6,4],[6,5,6,8],[7,1,7,4],[7,5,7,8],[8,1,8,4],[8,5,8,8],[9,1,9,4],[9,5,9,8],[10,1,10,4],[10,5,10,8],[11,1,11,4],[11,5,11,8],[12,1,12,4],[12,5,12,8]]}
[null,"BROKER & AGENT RETURN - ATTACHMENTS"]
[null,{"$f":"'Company Information'!C3","v":"Enter Company Name"}]
[]
[null,"Document Name",{"$nulls":3},"File Name",{"$nulls":3},"Attach","View","Remove"]
[1,"Management accounts",{"$nulls":3},"<Attach file>",{"$nulls":3},"Attach","View","Remove"]
[2,"Business plan for the next financial year",{"$nulls":3},"<Attach file>",{"$nulls":3},"Attach","View","Remove"]
[3,"Signed declaration",{"$nulls":3},"<Attach file>",{"$nulls":3},"Attach","View","Remove"]
[4,"Organisational chart",{"$nulls":3},"<Attach file>",{"$nulls":3},"Attach","View","Remove"]
[5,"AML/ATF independent audit",{"$nulls":3},"<Attach file>",{"$nulls":3},"Attach","View","Remove"]
[6,"AML/ATF policies and procedures \n(if updated in the last 12 months)",{"$nulls":3},"<Attach file>",{"$nulls":3},"Attach","View","Remove"]
[7,"Cyber Schedule Attachments",{"$nulls":3},"<Attach file>",{"$nulls":3},"Attach","View","Remove"]
[8,"Other Attachment",{"$nulls":3},"<Attach file>",{"$nulls":3},"Attach","View","Remove"]
[9,"Other Attachment",{"$nulls":3},"<Attach file>",{"$nulls":3},"Attach","View","Remove"]

{"sheet":"FileStorage","index":10,"n_rows":0,"n_cols":0,"rows_kept":0,"hidden":true}

{"sheet":"Zones","index":11,"n_rows":122,"n_cols":9,"rows_kept":122,"hidden":true}
["Geographical Zones"]
[]
[null,"Zone 1 - Central & Western Asia"]
[null,null,"Armenia",null,"Azerbaijan",null,"Bahrain",null,"Georgia"]
[null,null,"Iraq",null,"Israel",null,"Jordan",null,"Kazakhstan"]
[null,null,"Kuwait",null,"Kyrgyzstan",null,"Lebanon",null,"Oman"]
[null,null,"Palestinian",null,"Qatar",null,"Saudi Arabia",null,"Saudi Arab Republic"]
[null,null,"Tajikistan",null,"Turkey",null,"Turkmenistan",null,"United Arab Emirates"]
[null,null,"Uzbekistan",null,"Yemen"]
[]
[null,"Zone 2 - Eastern Asia"]
[null,null,"China",null,"Hong Kong",null,"Japan",null,"Macao"]
[null,null,"Mongolia",null,"North Korea",null,"South Korea",null,"Taiwan"]
[]
[null,"Zone 3 - South and South-Eastern Asia"]
[null,null,"Afghanistan",null,"Bangladesh",null,"Bhutan",null,"Brunei Darussalam"]
[null,null,"Cambodia",null,"India",null,"Indonesia",null,"Iran"]
[null,null,"Lao PDR",null,"Malaysia",null,"Maldives",null,"Myanmar"]
[null,null,"Nepal",null,"Pakistan",null,"Philippines",null,"Singapore"]
[null,null,"Sri Lanka",null,"Thailand",null,"Timor-Leste",null,"Vietnam"]
[]
[null,"Zone 4 - Oceania"]
[null,null,"American Samoa",null,"Australia",null,"Cook Islands",null,"Fiji"]
[null,null,"French Polynesia",null,"Guam",null,"Kiribati",null,"Marshall Islands"]
[null,null,"Micronesia",null,"Nauru",null,"New Caledonia",null,"New Zealand"]
[null,null,"Niue",null,"Norfolk Island",null,"N. Mariana Islands",null,"Palau"]
[null,null,"Papua New Guinea",null,"Pitcairn",null,"Samoa",null,"Solomon Islands"]
[null,null,"Tokelau",null,"Tonga",null,"Tuvalu",null,"Vanuatu"]
[null,null,"Wallis & Futuna Islands"]
[]
[null,"Zone 5 - Northern Africa"]
[null,null,"Algeria",null,"Benin",null,"Burkina Faso",null,"Cameroon"]
[null,null,"Cape Verde",null,"Central African Republic",null,"Chad",null,"Cote d' Ivoire"]
[null,null,"Egypt",null,"Gambia",null,"Ghana",null,"Guinea"]
[null,null,"Guinea-Bissau",null,"Liberia",null,"Libya",null,"Mali"]
[null,null,"Mauritania",null,"Morocco",null,"Niger",null,"Nigeria"]
[null,null,"Saint Helena",null,"Senegal",null,"Sierra Leone",null,"Sudan"]
[null,null,"Togo",null,"Tunisia",null,"Western Sahara"]
[]
[null,"Zone 6 - Southern Africa"]
[null,null,"Angola",null,"Botswana",null,"Burundi",null,"Democratic Republic of Congo"]
[null,null,"Comoros",null,"Djibouti",null,"Equatorial Guinea",null,"Eritrea"]
[null,null,"Ethiopia",null,"Gabon",null,"Kenya",null,"Lesotho"]
[null,null,"Madagascar",null,"Malawi",null,"Mauritius",null,"Mayotte"]
[null,null,"Mozambique",null,"Namibia",null,"Republic of Congo",null,"Reunion"]
[null,null,"Rwanda",null,"Sao Tome & Principe",null,"Seychelles",null,"Somalia"]
[null,null,"South Africa",null,"Swaziland",null,"Uganda",null,"United Republic of Tanzania"]
[null,null,"Zambia",null,"Zimbabwe"]
[]
[null,"Zone 7 - Eastern Europe"]
[null,null,"Belarus",null,"Bulgaria",null,"Czech Republic",null,"Hungary"]
[null,null,"Moldova",null,"Poland",null,"Romania",null,"Russian Federation"]
[null,null,"Slovakia",null,"Ukraine"]
[]
[null,"Zone 8 - Northern Europe"]
[null,null,"Aland Islands",null,"Channel Islands",null,"Denmark",null,"Estonia"]
[null,null,"Faeroe Islands",null,"Finland",null,"Guernsey",null,"Iceland"]
[null,null,"Republic of Ireland",null,"Isle of Man",null,"Jersey",null,"Latvia"]
[null,null,"Lithuania",null,"Norway",null,"Svalbard, Jan Mayen",null,"Sweden"]
[null,null,"United Kingdom"]
[]
[null,"Zone 9 - Southern Europe"]
[null,null,"Albania",null,"Andorra",null,"Bosnia",null,"Croatia"]
[null,null,"Cyprus",null,"Gibraltar",null,"Greece",null,"Italy"]
[null,null,"fYR of Macedonia",null,"Malta",null,"Montenegro",null,"Portugal"]
[null,null,"San Marino",null,"Serbia",null,"Slovenia",null,"Spain"]
[null,null,"Vatican City"]
[]
[null,"Zone 10 - Western Europe"]
[null,null,"Austria",null,"Belgium",null,"France",null,"Germany"]
[null,null,"Liechtenstein",null,"Luxembourg",null,"Monaco",null,"Netherlands"]
[null,null,"Switzerland"]
[]
[null,"Zone 11 - Northern America (Excluding USA)"]
[null,null,"Canada",null,"Greenland",null,"St Pierre & Miquelon"]
[]
[null,"Zone 12 - Caribbean"]
[null,null,"Anguilla",null,"Antigua & Barbuda",null,"Aruba",null,"Bahamas"]
[null,null,"Barbados",null,"British Virgin Islands",null,"Cayman Islands",null,"Cuba"]
[null,null,"Dominica",null,"Dominican Republic",null,"El Salvador",null,"Grenada"]
[null,null,"Guadeloupe",null,"Haiti",null,"Montserrat",null,"Netherlands Antilles"]
[null,null,"Puerto Rico",null,"St-Barthelemy",null,"St Kitts & Nevis",null,"St Lucia"]
[null,null,"St Martin",null,"St Vincent",null,"Trinidad & Tobago",null,"Turks & Caicos Islands"]
[null,null,"US Virgin Islands",null,"Jamica"]
[]
[null,"Zone 13 - Eastern South America"]
[null,null,"Brazil",null,"Falkland Islands",null,"French Guiana",null,"Guyana"]
[null,null,"Paraguay",null,"Suriname",null,"Uruguay"]
[]
[null,"Zone 14 - Northern, Southern and Western South America"]
[null,null,"Argentina",null,"Bolivia",null,"Chile",null,"Colombia"]
[null,null,"Ecuador",null,"Peru",null,"Venezuela"]
[]
[null,"Zone 15 - North-East United States"]
[null,null,"Connecticut",null,"Delaware",null,"District of Columbia",null,"Maine"]
[null,null,"Maryland",null,"Massachusetts",null,"New Hampshire",null,"New Jersey"]
[null,null,"New York",null,"Pennsylvania",null,"Rhode Island",null,"Vermont"]
[]
[null,"Zone 16 - South-East United States"]
[null,null,"Alabama",null,"Arkansas",null,"Florida",null,"Georgia"]
[null,null,"Kentucky",null,"Louisiana",null,"Mississippi",null,"North Carolina"]
[null,null,"Puerto Rico",null,"South Carolina",null,"Tennessee",null,"Virginia"]
[null,null,"West Virigina"]
[]
[null,"Zone 17 - Mid-West United States"]
[null,null,"Illinois",null,"Indiana",null,"Iowa",null,"Kansas"]
[null,null,"Michigan",null,"Minnesota",null,"Missouri",null,"Nebraska"]
[null,null,"North Dakota",null,"Ohio",null,"Oklahoma",null,"South Dakota"]
[null,null,"Wisconsin"]
[]
[null,"Zone 18 - Western United States"]
[null,null,"Alaska",null,"Arizona",null,"California",null,"Colorado"]
[null,null,"Hawaii",null,"Idaho",null,"Montana",null,"Nevada"]
[null,null,"New Mexico",null,"Oregon",null,"Texas",null,"Utah"]
[null,null,"Washington",null,"Wyoming"]
[]
[null,"Zone 19 - Centeral America"]
[null,null,"Belize",null,"Costa Rica",null,"Guatemala",null,"Honduras"]
[null,null,"Mexico",null,"Nicaragua",null,"Panama"]
[]
[null,"Zone 20 - Bermuda"]
[null,null,"Bermuda"]

{"sheet":"Data Validation List","index":12,"n_rows":69,"n_cols":1,"rows_kept":69,"hidden":true}
[]
[]
["(please select)"]
["Yes"]
["No"]
[]
[]
["(please select)"]
["Yes"]
["No"]
["N/A"]
[]
[]
["(please select)"]
["Yes"]
["No"]
["Don't Know"]
[]
[]
["(please select)"]
[2019]
[2018]
[2017]
[2016]
[2015]
[2014]
[2013]
[2012]
["Prior 2012"]
[]
[]
["(please select)"]
["Less than 1 year"]
["1 to 2 years"]
["2 to 5 years"]
["+5 years"]
[]
[]
["(please select)"]
["Yes"]
["No"]
["N/A"]
[]
[]
["(please select)"]
[2017]
[2016]
[2015]
[2014]
[2013]
[2012]
["Prior 2012"]
["N/A"]
[]
[]
["(please select)"]
["Class A"]
["Class B"]
["Class C"]
["Class D"]
["Class E"]
["Dual Licence"]
[]
[]
["(please select)"]
["Yes - Parent (regulated FI)"]
["Yes - Parent (non regulated FI)"]
["Yes - Subsidiary"]
["No"]